Cogmind - Beta 15 @@@ ROGUE MODE // 2025.08.06 @ 18:15:25 Player: puppuppit Result: Destroyed by EXE-6 with Concept XC Strikerail Performance ------------- Evolutions (7) 3500 Regions Visited (31) 6200 Robots Destroyed (784) 3920 Value Destroyed (25707) 25707 Prototype IDs (71) 1420 Alien Tech Used (4) 800 Bonus (19035) 19035 TOTAL SCORE: 60582 Bonus ------- Triggered High Security 1500 High Alert Combat Kills 9641 Follower Combat Kills 3110 Entered Garrisons 200 Used RIF Installer 500 Registered with UFD 300 Met Optimus in HQ 500 Met Data Miner 300 Built Enhanced Grunts 300 A7 Reached Mainframe 300 Met R17 at Cetus 500 Met R17 at Research 2000 Scanned by Researcher 500 Friendly Fire -616 Cogmind --------- Core Integrity 0/1300 Matter 157/300 Energy 99/100 System Corruption 6% Temperature Cool (0) Movement Core (50) Location -3/Protoforge Parts ------- > --- POWER (2) -------- (None) > --- PROPULSION (7) --- (None) > --- UTILITY (8) ------ (None) > --- WEAPON (4) ------- (None) > --- INVENTORY (5) ---- Advanced Matter Compressor (14) Improved Weapon Cycler Phase Armor Subatomic Replicator Peak State ------------ > --- POWER ------------ Light Particle Reactor Light Particle Reactor > --- PROPULSION ------- Improved Antigrav System Improved Antigrav System Combat Antigrav System Combat Antigrav System Antigrav Array Combat Linear Gravjet > --- UTILITY ---------- Coolant Network Large Storage Unit Phase Armor Graphene Brace Improved Hacking Suite Improved System Shield > --- WEAPON ----------- Hypervelocity Mass Driver Linear Accelerator Linear Accelerator Compact Mass Driver > --- INVENTORY -------- Particle Reactor Combat Antigrav System Combat Antigrav System Combat Antigrav System Combat Antigrav System Advanced Coolant Injector Advanced Matter Compressor Improved Weapon Cycler Subatomic Replicator Terrabomb Hypervelocity Mass Driver Hypervelocity Mass Driver Linear Accelerator Hellfire Missile Launcher [Rating: 179] Favorites ----------- Power Reinforced Ion Engine Engine Reinforced Ion Engine Power Core Light Nuclear Core Reactor Light Antimatter Reactor Propulsion Antigrav System Treads Armored Treads Leg Carbon-fiber Leg Hover Unit Antigrav System Flight Unit Impulse Thruster Array Utility Large Storage Unit Device Experimental Heat Sink Storage Large Storage Unit Processor Experimental Target Analyzer Hackware Hacking Suite Protection Improved Weapon Shielding Artifact Phase Armor Weapon Improved Assault Rifle Energy Gun Gatling Laser Ballistic Gun Improved Assault Rifle Ballistic Cannon Linear Accelerator Launcher Scatter Rocket Array Impact Weapon Power Maul Build | -11 -10 -10 -9 -9 -9 -8 -8 -8 -8 -8 -6 -6 -6 -6 -5 -5 -5 -5 -5 -5 -5 -4 -4 -4 -4 -4 -4 -3 -3 -3 -3 ------- Run | Yrd Mat Min Mat Min Exi Min Mat Sto Rec Scr Fac Low Low Dat Pro Fac Ext Cet Arc Hub Gar Fac Was Fac Upp Upp War Pro Res Qua Frg Slots Evolved 14 | . . . 2 . . . 2 . . . 4 . . . . 2 . . . . . 2 . . . . . . 2 . . Power 1 | . . . . . . . . . . . . . . . . 1 . . . . . . . . . . . . . . . Propulsion 5 | . . . . . . . 1 . . . 2 . . . . 1 . . . . . 1 . . . . . . . . . Utility 6 | . . . . . . . 1 . . . 2 . . . . . . . . . . 1 . . . . . . 2 . . Weapon 2 | . . . 2 . . . . . . . . . . . . . . . . . . . . . . . . . . . . Parts Attached 457 | 7 7 . 32 2 2 3 23 12 3 14 57 9 2 . . 61 14 4 14 8 47 15 2 51 . 2 . 2 46 17 1 Power 67 | 1 . . 5 1 . . 2 1 . 2 8 1 . . . 12 3 . 2 . 6 2 . 7 . . . . 11 3 . Engine 23 | 1 . . 5 . . . 1 1 . 2 5 . . . . 3 1 . 2 . . . . 2 . . . . . . . Core 19 | . . . . 1 . . 1 . . . 1 1 . . . 9 2 . . . 4 . . . . . . . . . . Reactor 25 | . . . . . . . . . . . 2 . . . . . . . . . 2 2 . 5 . . . . 11 3 . Propulsion 130 | 2 2 . 8 . . . 7 3 . 2 15 4 1 . . 16 3 . 2 4 22 3 1 18 . . . 1 11 5 . Treads 33 | 2 2 . 8 . . . 7 3 . 1 . 4 1 . . 1 . . . . 4 . . . . . . . . . . Leg 14 | . . . . . . . . . . . . . . . . . . . . . 14 . . . . . . . . . . Wheel . | . . . . . . . . . . . . . . . . . . . . . . . . . . . . . . . . Hover 77 | . . . . . . . . . . 1 11 . . . . 15 3 . 2 4 4 3 1 18 . . . 1 9 5 . Flight 6 | . . . . . . . . . . . 4 . . . . . . . . . . . . . . . . . 2 . . Utility 142 | 2 3 . 7 1 1 1 8 3 2 7 19 1 1 . . 18 2 . 4 4 12 6 1 19 . . . 1 14 5 . Device 62 | 1 . . 3 1 . . 3 2 . 4 8 1 1 . . 7 . . 2 . 9 1 1 11 . . . 1 4 2 . Storage 15 | 1 1 . 2 . . 1 1 . . 1 1 . . . . 2 1 . . . 1 . . 1 . . . . 2 . . Processor 23 | . . . . . . . 1 . 1 1 7 . . . . 2 1 . . 1 . 2 . 1 . . . . 5 1 . Hackware 26 | . . . . . . . 2 . . . 3 . . . . 5 . . 2 3 . 3 . 5 . . . . 2 1 . Protection 15 | . 2 . 2 . 1 . 1 1 1 1 . . . . . 2 . . . . 2 . . 1 . . . . 1 . . Artifact 1 | . . . . . . . . . . . . . . . . . . . . . . . . . . . . . . 1 . Weapon 118 | 2 2 . 12 . 1 2 6 5 1 3 15 3 . . . 15 6 4 6 . 7 4 . 7 . 2 . . 10 4 1 Energy Gun 4 | . . . . . . . . . . . . 1 . . . 1 . 1 . . . . . 1 . . . . . . . Energy Cannon . | . . . . . . . . . . . . . . . . . . . . . . . . . . . . . . . . Ballistic Gun 84 | 2 1 . 11 . 1 2 5 1 1 3 11 1 . . . 10 6 3 6 . 3 3 . 5 . 2 . . 7 . . Ballistic Cannon 17 | . . . . . . . . 1 . . 2 1 . . . 3 . . . . 3 . . 1 . . . . 2 3 1 Launcher 12 | . 1 . 1 . . . 1 3 . . 2 . . . . . . . . . 1 1 . . . . . . 1 1 . Special Weapon . | . . . . . . . . . . . . . . . . . . . . . . . . . . . . . . . . Impact Weapon 1 | . . . . . . . . . . . . . . . . 1 . . . . . . . . . . . . . . . Slashing Weapon . | . . . . . . . . . . . . . . . . . . . . . . . . . . . . . . . . Piercing Weapon . | . . . . . . . . . . . . . . . . . . . . . . . . . . . . . . . . Special Melee Weapon . | . . . . . . . . . . . . . . . . . . . . . . . . . . . . . . . . Unidentified Prototypes 34 | . . . . . . . 2 2 . . 11 1 . . . . 1 2 . . . . . 1 . . . . 9 5 . Corrupted Parts 1 | . . . . . . . . . . 1 . . . . . . . . . . . . . . . . . . . . . System Corruption 5 | . . . . . . . . . . 5 . . . . . . . . . . . . . . . . . . . . . Parts Lost 130 | . . . 3 3 . . 2 11 . . 19 . . . . 20 . . 2 8 5 1 . 21 2 . . 1 12 9 11 Power 17 | . . . 1 . . . . 1 . . 1 . . . . 2 . . . 1 1 . . 3 . . . . 3 2 2 Propulsion 46 | . . . . 1 . . . 3 . . 5 . . . . 7 . . 2 4 2 1 . 9 2 . . 1 4 1 4 Utility 24 | . . . 1 . . . 2 1 . . 3 . . . . 5 . . . 2 1 . . 3 . . . . 1 3 2 Weapon 43 | . . . 1 2 . . . 6 . . 10 . . . . 6 . . . 1 1 . . 6 . . . . 4 3 3 Highest Loss Streak 10 | . . . 1 1 . . 1 9 . . 9 . . . . 6 . . 2 5 7 1 . 9 2 . . 1 4 3 10 To Critical Strikes 1 | . . . . . . . . . . . . . . . . . . . . . . . . 1 . . . . . . . Average Backups 13 | . 10 15 14 14 14 15 14 14 14 14 13 13 14 14 13 12 14 14 13 13 14 14 15 13 13 14 14 14 14 14 11 Power . | . . . . . 3 4 2 . . . . 1 1 1 . 1 2 2 1 . . . . . . . . . . . . Propulsion 3 | . . 2 2 2 1 1 3 5 7 6 3 4 4 4 4 1 4 3 2 2 3 . 3 2 1 . . . 1 5 3 Utility 5 | . 2 4 4 5 4 5 4 4 5 5 4 6 7 8 8 7 4 4 4 5 4 6 6 8 8 9 10 10 7 4 3 Weapon 4 | . 6 9 7 5 5 5 5 4 1 2 4 . 1 1 . 2 3 4 5 5 4 7 6 3 3 3 3 2 4 3 2 Tool/Special . | . . . . . . . . . . . . . . . . . . . . . . . . . . . . . . . . Unused Backups 68 | . 4 . 12 . . . 5 1 1 2 7 . 1 . 2 6 6 . 1 1 . 1 . 7 . 1 . 3 3 1 3 Power 15 | . . . 1 . . . 2 1 . . 3 . . . 1 3 1 . 1 . . . . 1 . . . . 1 . . Propulsion 5 | . . . 1 . . . . . . 2 . . . . . . . . . . . . . 2 . . . . . . . Utility 28 | . 3 . 4 . . . 1 . . . 4 . 1 . 1 3 2 . . 1 . 1 . 3 . . . 2 1 1 . Weapon 18 | . 1 . 6 . . . 2 . 1 . . . . . . . 3 . . . . . . 1 . 1 . . 1 . 2 Tool/Special 2 | . . . . . . . . . . . . . . . . . . . . . . . . . . . . 1 . . 1 Average Slot Usage (%) 94 | . 99 100 98 99 97 100 99 96 87 97 85 81 86 64 80 95 100 100 99 97 96 99 94 96 93 94 94 93 86 89 78 Engine 4 | . 13 14 9 6 . . 8 8 9 9 3 5 . . . 1 3 5 2 5 . . . 1 . . . . . . . Core 2 | . . . . 3 11 11 . . . . 1 . 6 6 6 7 6 5 5 4 8 3 . . . . . . . . . Reactor 1 | . . . . . . . . . . . . . . . . 1 . . 2 . 1 6 10 8 10 10 10 10 7 9 7 Treads 13 | . 27 28 22 21 22 22 27 26 27 27 . 17 20 20 20 . . . . . 1 . . . . . . . . . . Leg 2 | . . . . . . . . . . . . . . . . . . . . . 26 . . . . . . . . . . Hover 12 | . . . . . . . . . . . 25 . . . . 31 35 35 35 34 6 35 36 34 35 36 36 35 28 27 25 Device 8 | . 8 . 6 6 . . 5 3 9 7 1 . 6 6 6 6 11 11 13 5 17 14 10 11 21 21 21 21 17 13 15 Storage 7 | . 14 14 11 11 11 11 9 9 9 8 6 6 6 6 6 5 5 5 5 5 5 5 5 5 5 5 5 5 4 4 3 Processor 3 | . . . . . . . . . 5 4 11 25 20 20 20 5 . 5 4 . . 1 . . . . . . 6 . . Hackware 5 | . . . . . . . 10 8 . . 11 . . . . 8 10 5 3 15 2 9 10 12 . . . . 2 10 8 Protection 2 | . 5 14 4 4 11 11 1 6 3 5 . . . . . 1 . . . . 1 . . . . . . . 1 2 . Ballistic Gun 24 | . 27 28 43 44 41 44 35 33 24 35 16 5 6 . 6 15 23 22 22 22 16 20 19 17 20 20 21 20 12 1 . Ballistic Cannon 2 | . . . . . . . . . . . 2 12 12 2 6 6 . . . . 5 . 1 1 . . . . 3 17 16 Peak Build Rating 179 | 9 10 8 19 20 20 23 36 39 30 44 84 92 93 90 93 101 102 104 112 108 116 126 134 133 121 123 123 121 164 179 164 Average Rating 67 | 6 8 8 15 18 19 22 34 34 29 37 63 89 91 76 87 89 100 101 107 104 98 121 131 119 119 121 121 115 135 162 139 On Entrance 76 | . 9 8 8 17 19 20 23 36 27 30 40 63 92 90 87 87 98 101 104 108 80 114 123 133 120 121 123 121 115 162 157 Naked Turns 34 | . . . . . . . . . . . . . . . . . . . . . . . . . . . . . . . 34 Heaviest Build 100 | 12 28 28 44 43 39 40 52 52 41 55 56 49 50 50 45 64 63 64 66 66 100 69 77 83 75 77 77 75 95 100 100 Greatest Support 188 | 40 40 40 43 43 40 40 60 60 56 93 121 188 188 160 160 183 64 65 65 70 99 79 82 86 84 84 84 79 96 100 100 Greatest Overweight (x) 22 | . . . 1 . . . . 1 . 3 1 . . . . 1 1 . 1 1 22 . . 1 . . 1 . . . 1 Average Overweight (x) . | . . . . . . . . . . . . . . . . . . . . . . . . . . . . . . . . Largest Inventory Capacity 15 | 8 15 15 15 15 15 15 15 15 15 15 15 15 15 15 15 15 15 15 15 15 15 15 15 15 15 15 15 15 15 15 15 Average Capacity 14 | 7 12 15 15 15 15 15 15 15 15 14 15 15 15 15 15 15 15 15 15 15 15 15 15 15 15 15 15 15 15 15 14 Most Carried 15 | 2 15 15 15 15 15 15 15 15 15 15 15 15 15 15 15 15 15 15 15 15 15 15 15 15 15 15 15 15 15 15 13 Average Carried 14 | . 10 15 14 14 14 15 14 14 14 14 14 14 14 15 14 14 14 14 14 14 14 14 14 14 14 14 15 14 14 14 12 Final Capacity 15 | 8 15 15 15 15 15 15 15 15 15 15 15 15 15 15 15 15 15 15 15 15 15 15 15 15 15 15 15 15 15 15 5 Final Carried 15 | 2 15 15 15 14 15 15 15 13 15 15 15 15 15 15 15 15 15 15 15 15 15 15 15 15 15 15 15 15 15 14 5 Class Distribution -------------------- 23% | Scavenger-Gunner 16% | Scavenger-Tank 12% | Gunner 10% | Tank 8% | Hacker-Gunner 8% | Commander-Gunner 6% | Commander-Tank 6% | Mutant Dominant Class ---------------- Mutant | -10/Materials Mutant | -10/Mines Gunner | -9/Materials Gunner | -9/Mines Scavenger-Tank | -9/Exiles Scavenger-Tank | -8/Mines Hacker-Gunner | -8/Materials Scavenger-Tank | -8/Storage Commander-Gunner | -8/Recycling Commander-Tank | -8/Scraptown Hacker-Gunner | -6/Factory Gunner | -6/Lower Caves Tank | -6/Lower Caves Mutant | -6/Data Miner Tank | -5/Proximity Caves Scavenger-Gunner | -5/Factory Scavenger-Gunner | -5/Extension Commander-Gunner | -5/Cetus Scavenger-Gunner | -5/Archives Scavenger-Gunner | -5/Hub_04(d) Scavenger-Gunner | -5/Garrison Scavenger-Gunner | -4/Factory Scavenger-Gunner | -4/Waste Scavenger-Gunner | -4/Factory Scavenger-Gunner | -4/Upper Caves Scavenger-Gunner | -4/Upper Caves Scavenger-Gunner | -4/Warlord Scavenger-Gunner | -3/Proximity Caves Scavenger-Gunner | -3/Research Scavenger-Tank | -3/Quarantine Hacker-Tank | -3/Protoforge Resources | -11 -10 -10 -9 -9 -9 -8 -8 -8 -8 -8 -6 -6 -6 -6 -5 -5 -5 -5 -5 -5 -5 -4 -4 -4 -4 -4 -4 -3 -3 -3 -3 ----------- Run | Yrd Mat Min Mat Min Exi Min Mat Sto Rec Scr Fac Low Low Dat Pro Fac Ext Cet Arc Hub Gar Fac Was Fac Upp Upp War Pro Res Qua Frg Matter Collected 33341 | 422 925 . 2756 453 99 231 1847 1918 165 932 4391 771 241 . 194 3757 1143 310 786 656 3205 376 300 3888 318 34 . 194 1959 1058 12 Remotely 2147 | . . . . . . . 122 644 . . . . . . . 826 . . . . . . . 386 . . . . 169 . . Salvage Created 32756 | 253 914 . 3681 688 . 418 2945 4176 910 . 3795 478 232 . 475 2820 1647 416 360 443 2113 472 . 3668 143 47 . 44 1387 231 . Parts 1705 | 19 84 . 250 43 . 32 156 216 42 . 180 16 3 . 15 109 83 19 28 28 89 25 . 170 14 6 . 9 51 18 . Haulers Intercepted 35 | . 2 . 6 . . . 6 6 . . 3 . . . . 3 1 . . 1 . . . 4 . . . . 3 . . Recyclers Shooed 24 | 1 2 . 3 . . . 1 . 3 . 3 . . . . 5 2 . . . . . . 2 . . . . 2 . . Parts Field Recycled 41 | . . . . . . . . . . 41 . . . . . . . . . . . . . . . . . . . . . Retrieved Matter 443 | . . . . . . . . . . 443 . . . . . . . . . . . . . . . . . . . . . Parts Self-Destructed 39 | . . . . . . . . . . . . 14 3 . 5 . . . . . . . . . 10 4 . 3 . . . Prevented 4 | . . . . . . . . . . . . . . . . . . . . . . . . . . 4 . . . . . Kills | -11 -10 -10 -9 -9 -9 -8 -8 -8 -8 -8 -6 -6 -6 -6 -5 -5 -5 -5 -5 -5 -5 -4 -4 -4 -4 -4 -4 -3 -3 -3 -3 ------- Run | Yrd Mat Min Mat Min Exi Min Mat Sto Rec Scr Fac Low Low Dat Pro Fac Ext Cet Arc Hub Gar Fac Was Fac Upp Upp War Pro Res Qua Frg Combat Hostiles Destroyed 462 | . 17 . 50 11 . 5 31 49 2 . 74 16 7 . 12 28 17 4 . 3 44 6 . 41 6 4 . 5 24 6 . Melee 3 | . . . . . . . . . . . 3 . . . . . . . . . . . . . . . . . . . . Guns 289 | . 7 . 36 10 . 5 31 39 2 . 24 3 3 . 2 19 17 4 . 3 41 2 . 29 2 . . . 9 1 . Cannons 24 | . . . . . . . . . . . 6 5 . . . 6 . . . . 3 . . . . . . . 2 2 . AOE 145 | . 10 . 14 1 . . . 10 . . 40 8 4 . 10 3 . . . . . 4 . 12 4 4 . 5 13 3 . Classes Destroyed 26 | 3 6 . 5 . . 1 1 1 . . 3 1 . . 1 . 1 . . 1 . . . . . . . . 1 1 . Worker 76 | 2 4 . 20 1 . 3 11 13 . . 6 . . . . 5 2 . . 2 . . . 4 . . . . 3 . . Builder 56 | . 8 . 14 2 . 1 4 6 . . 3 . . . . 3 1 . . 2 . 1 . 10 . . . . . 1 . Tunneler 14 | 4 1 . 3 2 . 2 1 . . . . . . . . 1 . . . . . . . . . . . . . . . Hauler 35 | . 2 . 6 . . . 6 6 . . 3 . . . . 3 1 . . 1 . . . 4 . . . . 3 . . Recycler 69 | 1 2 . 7 1 . 2 6 14 11 . 3 . . . . 8 3 . . . . . . 8 . . . . 3 . . Minesweeper 1 | . . . . . . . . . . . . 1 . . . . . . . . . . . . . . . . . . . Mechanic 8 | . . . 3 . . . 1 3 . . 1 . . . . . . . . . . . . . . . . . . . . Operator 24 | . 1 . 3 . . . 2 . . . 1 . . . . 1 1 . 9 1 . 1 . 1 . . . . 2 1 . Drone 4 | . . . . . . . . . . . . . . . 2 . . . . . . . . . . . . 2 . . . Watcher 35 | . 3 . 5 . . . 5 2 . . 4 . . . . 4 2 1 . 3 . 4 . . . . . . . 2 . Swarmer 122 | . 9 . 15 . . 4 3 7 . . 8 . 2 . 5 1 5 . . . 17 2 . 11 4 4 . 3 18 4 . Cutter 1 | . . . . . . . . . . . . . . . . . . . . 1 . . . . . . . . . . . Saboteur 4 | . . . . . . . . . . . 4 . . . . . . . . . . . . . . . . . . . . Grunt 183 | . 8 . 20 11 . . 14 25 . . 40 10 3 . 4 10 4 . . 2 13 4 . 12 . . . . 3 . . Brawler 15 | . . . 2 . . . 2 1 . . 1 2 1 . 1 3 . . . . 1 . . 1 . . . . . . . Duelist 9 | . . . 2 . . . 1 1 . . 2 1 . . . . . . . . 1 . . 1 . . . . . . . Protector 5 | . . . 1 . . . . 1 . . 3 . . . . . . . . . . . . . . . . . . . . Researcher 1 | . . . . . . . . . . . . . . . . . . . . . . . . . . . . . . 1 . Sentry 56 | . . . 10 . . . 8 10 2 . 4 2 1 . . . 6 . . . 9 . . 4 . . . . . . . Demolisher 4 | . . . . . . . . 4 . . . . . . . . . . . . . . . . . . . . . . . Specialist 1 | . . . . . . . . . . . 1 . . . . . . . . . . . . . . . . . . . . Hunter 16 | . . . . . . 1 2 . . . 6 1 . . . 4 . . . . . . . 2 . . . . . . . Programmer 32 | . . . . . . . . . . . 5 . . . . 10 . . . . 3 . . 10 2 . . . . 2 . Heavy 2 | . . . . . . . 1 . . . 1 . . . . . . . . . . . . . . . . . . . . Behemoth 3 | . . . . . . . . . . . . . . . . . 2 . . . 1 . . . . . . . . . . Cetus Guard 4 | . . . . . . . . . . . . . . . . . . 4 . . . . . . . . . . . . . Striker 3 | . . . . . . . . . . . . . . . . . . . . . . . . . . . . . 3 . . Thug 1 | . . . . . . . . . . . . . . . . . . 1 . . . . . . . . . . . . . Best Kill Streak 15 | 5 7 . 15 5 . 4 9 11 4 . 14 11 4 . 5 13 4 4 3 5 8 5 . 12 6 4 . 4 8 5 . Combat Bots Only 11 | . 6 . 10 3 . 4 8 9 2 . 11 11 4 . 5 10 4 3 . 2 8 4 . 8 6 4 . 4 7 4 . Max Kills in Single Turn 7 | 1 3 . 4 2 . 1 3 4 1 . 7 6 2 . 3 2 2 2 1 2 3 5 . 6 4 4 . 2 4 2 . Gunslinging 2 | . . . 1 . . . 1 2 . . . . . . . 1 . . . . 2 . . . . . . . . . . Exploded 6 | . 2 . 3 1 . . . 2 . . 6 6 2 . 3 1 . . . . . 4 . 4 4 4 . 2 4 2 . Melee 1 | . . . . . . . . . . . 1 . . . . . . . . . . . . . . . . . . . . Uniques/NPCs Destroyed . | . . . . . . . . . . . . . . . . . . . . . . . . . . . . . . . . Combat | -11 -10 -10 -9 -9 -9 -8 -8 -8 -8 -8 -6 -6 -6 -6 -5 -5 -5 -5 -5 -5 -5 -4 -4 -4 -4 -4 -4 -3 -3 -3 -3 -------- Run | Yrd Mat Min Mat Min Exi Min Mat Sto Rec Scr Fac Low Low Dat Pro Fac Ext Cet Arc Hub Gar Fac Was Fac Upp Upp War Pro Res Qua Frg Hostile Shots Fired 2210 | . 37 . 129 32 . 15 93 174 . . 316 34 17 . 11 275 32 4 3 68 130 40 . 243 20 15 . 6 201 189 126 Missed 855 | . 11 . 41 9 . 7 31 38 . . 129 14 9 . 2 100 8 2 1 23 44 19 . 91 4 7 . 5 107 114 39 Hits 1355 | . 26 . 88 23 . 8 62 136 . . 187 20 8 . 9 175 24 2 2 45 86 21 . 152 16 8 . 1 94 75 87 Melee 33 | . . . . . . . 4 2 . . 10 . . . . . . . . 1 1 . . . . . . . 14 . 1 Projectile 1322 | . 26 . 88 23 . 8 58 134 . . 177 20 8 . 9 175 24 2 2 44 85 21 . 152 16 8 . 1 80 75 86 AOE 36 | . . . . . . . . 29 . . 3 . . . . . . . . 2 . . . . . . . . 2 . . Critical Strikes 47 | . . . 2 . . . 1 5 . . 4 . . . . 11 . 1 1 . 2 1 . 9 1 . . . 4 . 5 Actively Blocked 6 | . . . . . . . . . . . . . . . . . . . . . . . . . . . . . 1 . 5 Part Disruptions 4 | . . . . . . . . . . . . . . . . . . . . . . . . . 1 . 2 . . . 1 Damage Taken 27994 | . 276 . 1009 284 . 66 1070 3016 . . 4096 339 155 . 156 3277 524 50 65 1059 1432 375 . 3056 370 147 39 44 2240 1964 2885 Core 3742 | . 32 . 69 32 . 6 84 289 . . 588 6 8 . . 473 50 . . 177 152 21 . 394 22 . . . 267 88 984 Absorbed by Shields 866 | . . . . . . . . 4 . . 76 . . . 62 103 . 24 . . 406 . . . . . . . 191 . . Reduced by Siege Mode 59 | . . . . . . . . . . . . 38 5 . 16 . . . . . . . . . . . . . . . . Redirected to Shielding 556 | . 9 . 46 20 . 23 121 . . . . . . . . 187 . . . . . . . . . . . . . 150 . Ignored by Resistances 120 | . . . . . . . . . . . . . 11 . . 28 5 . . 72 4 . . . . . . . . . . Regen/Repaired (Parts) 1914 | . . . . . . . 276 142 . 515 . . . . . 125 . . . . . . . 467 10 20 . 10 130 219 . Core Remaining (%) 56 | 100 . 87 . . . 73 . . . 32 . . . . 29 . . . . . 14 . . . . . . 62 . . . Volleys Fired 1358 | 18 74 . 144 26 . 15 98 143 19 . 127 16 8 . 21 135 47 13 35 28 91 21 8 129 10 1 . 3 84 29 15 Largest 4 | 2 2 . 4 4 . 4 4 4 3 . 4 4 4 . 3 4 4 4 4 4 4 4 4 4 4 1 . 1 4 4 4 Hottest 240 | 40 50 . 105 105 . 99 102 110 69 . 136 182 182 . 145 225 134 240 140 140 197 152 140 140 122 49 . 49 177 218 213 Shots Fired 4402 | 36 143 . 571 103 . 59 392 475 45 . 394 47 23 . 33 405 185 50 137 112 326 84 23 431 32 1 . 3 219 55 18 Gun 3959 | 36 135 . 558 102 . 59 392 460 45 . 334 18 12 . 23 291 185 50 137 112 282 83 20 413 31 . . . 174 7 . Cannon 344 | . . . . . . . . . . . 38 26 9 . 6 111 . . . . 41 . 3 12 . . . . 35 45 18 Launcher 99 | . 8 . 13 1 . . . 15 . . 22 3 2 . 4 3 . . . . 3 1 . 6 1 1 . 3 10 3 . Special . | . . . . . . . . . . . . . . . . . . . . . . . . . . . . . . . . Kinetic 4275 | 36 135 . 558 102 . 59 392 460 45 . 372 40 15 . 13 401 185 49 137 112 323 83 23 425 31 . . . 209 52 18 Thermal 28 | . . . . . . . . . . . . 4 6 . 16 1 . 1 . . . . . . . . . . . . . Explosive 57 | . 8 . . . . . . . . . 12 3 2 . 4 3 . . . . . 1 . 6 1 1 . 3 10 3 . Electromagnetic 42 | . . . 13 1 . . . 15 . . 10 . . . . . . . . . 3 . . . . . . . . . . Robot Hit Streak 22 | 6 11 . 11 7 . 8 12 20 22 . 15 14 5 . 14 11 8 4 14 18 11 11 19 21 4 . . . 10 5 2 Robot Miss Streak 10 | 6 4 . 5 4 . 6 5 4 2 . 10 9 4 . 10 4 4 3 10 3 5 3 1 9 3 . . 1 6 3 5 Penetration Max 2 | . . . . . . . 1 1 . . 2 . . . . 1 1 1 1 2 2 2 . 2 . . . . 1 1 . Secondary Targets 60 | . . . 7 4 . 1 8 6 . . 6 . . . . 8 1 . . 3 8 . . 6 1 . . . 1 . . Max Gunslinging Chain 2 | . . . 2 1 . 1 1 2 . . 1 . . . . 1 1 . . 1 2 . . 1 1 . . . 1 . . Shots Hit Robots 2401 | 19 85 . 299 49 . 26 217 289 33 . 246 37 12 . 26 229 94 23 60 61 146 46 19 232 18 . . . 116 17 2 Core Hits 1505 | 9 55 . 147 24 . 16 107 149 18 . 288 62 30 . 33 127 51 16 24 25 67 20 1 134 6 4 . 6 68 17 1 Critical Kills 45 | . . . . . . . 2 . . . 5 2 . . 1 6 7 2 . 1 8 2 . 5 . . . . 4 . . Critical Parts Destroyed 53 | . 1 . 1 . . . 1 4 . . 4 1 . . . 11 5 . . . 11 2 . 10 1 . . . 1 . . Critical Strikes 132 | . 1 . 1 . . . 4 5 . . 12 9 . . 2 28 13 2 . 2 23 6 . 16 1 . . . 5 2 . Destroy 109 | . 1 . 1 . . . 4 5 . . 10 3 . . 1 19 13 2 . 2 20 6 . 16 1 . . . 5 . . Blast 23 | . . . . . . . . . . . 2 6 . . 1 9 . . . . 3 . . . . . . . . 2 . Melee Attacks 1 | . . . . . . . . . . . . . . . . 1 . . . . . . . . . . . . . . . Impact 1 | . . . . . . . . . . . . . . . . 1 . . . . . . . . . . . . . . . Slashing . | . . . . . . . . . . . . . . . . . . . . . . . . . . . . . . . . Piercing . | . . . . . . . . . . . . . . . . . . . . . . . . . . . . . . . . Sneak Attacks . | . . . . . . . . . . . . . . . . . . . . . . . . . . . . . . . . Combat Hostiles . | . . . . . . . . . . . . . . . . . . . . . . . . . . . . . . . . Follow-up Attacks . | . . . . . . . . . . . . . . . . . . . . . . . . . . . . . . . . Damage Inflicted 75129 | 191 1702 . 5625 796 . 403 3969 6211 513 . 12317 2224 895 . 1145 7050 2502 934 1663 2091 4844 2107 518 9585 932 251 . 375 4882 1317 87 Guns 49129 | 191 964 . 4609 769 . 403 3969 4911 513 . 4474 246 182 . 401 4211 2502 934 1663 2078 3858 1353 518 7299 524 . . . 2366 191 . Cannons 5853 | . . . . . . . . . . . 1028 468 80 . 114 1876 . . . . 986 . . 160 . . . . 553 501 87 Explosions 20053 | . 738 . 1016 27 . . . 1300 . . 6815 1510 618 . 630 897 . . . . . 754 . 2126 408 251 . 375 1963 625 . Melee . | . . . . . . . . . . . . . . . . . . . . . . . . . . . . . . . . Ramming 94 | . . . . . . . . . . . . . 15 . . 66 . . . 13 . . . . . . . . . . . Kinetic 54440 | 191 964 . 4609 769 . 403 3969 4911 513 . 5502 650 116 . 183 6087 2502 934 1663 2078 4844 1353 518 7459 524 . . . 2919 692 87 Thermal 3064 | . . . 192 . . . . 194 . . 1033 64 146 . 332 . . . . . . 416 . 687 . . . . . . . Explosive 14839 | . 738 . . . . . . . . . 5050 1510 618 . 630 897 . . . . . 338 . 1436 408 251 . 375 1963 625 . Electromagnetic 2692 | . . . 824 27 . . . 1106 . . 732 . . . . . . . . . . . . 3 . . . . . . . Impact . | . . . . . . . . . . . . . . . . . . . . . . . . . . . . . . . . Slashing . | . . . . . . . . . . . . . . . . . . . . . . . . . . . . . . . . Piercing . | . . . . . . . . . . . . . . . . . . . . . . . . . . . . . . . . Highest Corruption 17 | . . . 4 4 4 4 . . . 5 6 5 5 5 5 11 11 11 11 9 12 . 8 13 17 17 17 . . 5 6 Average Corruption 7 | . . . 3 4 4 4 . . . 5 3 5 5 5 5 7 11 11 8 9 10 . 8 9 15 17 17 . . 3 5 Corruption Purged 16 | . . . . . . . . . . . 5 . . . . . . . 11 . . . . . . . . . . . . Corruption Blocked . | . . . . . . . . . . . . . . . . . . . . . . . . . . . . . . . . Effects 495 | . . . 11 13 17 12 . . . . 22 18 13 2 27 55 41 11 13 4 114 . 4 80 10 7 1 . . 14 6 Message Errors 107 | . . . 3 1 3 6 . . . . 6 3 2 . 8 11 9 4 2 . 30 . 1 13 1 2 . . . 1 1 Matter Fused 116 | . . . . 1 3 . . . . . 4 6 1 1 6 14 14 2 2 . 27 . 2 19 5 2 . . . 6 1 Heat Flow Errors 50 | . . . 2 2 3 1 . . . . 2 . 2 1 5 5 3 . . . 8 . 1 11 . 1 1 . . 2 . Energy Discharges 59 | . . . 1 3 4 3 . . . . 3 1 2 . 2 4 5 1 3 1 12 . . 9 . 2 . . . 3 . Parts Rejected 8 | . . . . . . . . . . . 2 . 1 . . . 1 . . . 1 . . 2 1 . . . . . . Parts Fused 7 | . . . . . . . . . . . . 1 . . 1 1 1 . . . 3 . . . . . . . . . . Data Loss (minor) 52 | . . . 1 1 2 . . . . . 1 5 3 . 3 2 3 2 1 1 17 . . 8 1 . . . . . 1 Data Loss (major) 15 | . . . 1 2 1 1 . . . . 3 . . . . 1 . 1 1 . . . . 2 . . . . . 1 1 Misfires 26 | . . . 2 1 . . . . . . . 2 2 . 1 1 2 1 . 1 8 . . 4 . . . . . 1 . Alerts 10 | . . . . . 1 . . . . . . . . . . 2 . . 1 . 4 . . 1 . . . . . . 1 Misdirections 8 | . . . . . . . . . . . . . . . . 6 1 . . . . . . 1 . . . . . . . Weapon Failures 37 | . . . 1 2 . 1 . . . . 1 . . . 1 8 2 . 3 1 4 . . 10 2 . . . . . 1 Overload Shots 2 | . . . . . . . . . . . . . . . . 1 . 1 . . . . . . . . . . . . . Overflow Damage 1280 | . . . 20 . . . . 28 . . 203 . 5 . . 103 . . . . 16 171 . 188 162 . . 53 278 53 . Projectiles 248 | . . . . . . . . . . . 51 . . . . 94 . . . . 16 . . 29 . . . . 38 20 . Explosions 1023 | . . . 20 . . . . 28 . . 152 . 5 . . . . . . . . 171 . 159 162 . . 53 240 33 . Melee 9 | . . . . . . . . . . . . . . . . 9 . . . . . . . . . . . . . . . Knockbacks 45 | . . . . . . . . . . . 5 1 1 . 1 19 . . . . . . . 3 . . . . 6 7 2 Impact . | . . . . . . . . . . . . . . . . . . . . . . . . . . . . . . . . Kinetic 42 | . . . . . . . . . . . 4 1 1 . 1 17 . . . . . . . 3 . . . . 6 7 2 Secondary 3 | . . . . . . . . . . . 1 . . . . 2 . . . . . . . . . . . . . . . Self-Inflicted Damage 1044 | . 21 . . . . . . 214 . . 84 45 75 . 68 102 . . . 6 18 . . 114 43 . . 44 87 123 . Shots 39 | . 2 . . . . . . 10 . . 5 2 4 . 4 1 . . . . 1 . . 4 1 . . 1 2 2 . Rammed 7 | . . . . . . . . . . . . . 2 . . 4 . . . 1 . . . . . . . . . . . Targets Rammed 8 | . . . . . . . . . . . . . 3 . . 4 . . . 1 . . . . . . . . . . . Kicked . | . . . . . . . . . . . . . . . . . . . . . . . . . . . . . . . . Crushed 1 | . . . . . . . . . . . . . 1 . . . . . . . . . . . . . . . . . . Highest Temperature 501 | . 26 . 245 164 143 159 277 281 . . 291 201 245 243 339 237 352 201 236 151 254 144 242 444 2 234 501 . 78 183 4 Average Temperature 59 | . 11 . 40 58 65 47 66 56 . . 60 39 99 121 93 61 63 88 77 39 63 41 122 73 1 26 111 . 18 58 4 Received Heat Transfer 5123 | . 96 . 342 156 . . 351 834 . . 975 48 24 . 36 556 45 . . 54 308 82 . 802 . 9 . . 102 51 252 Effects 11 | . . . . . . . 2 1 . . 3 . . . . . . . . . . . . 3 . . 2 . . . . Shutdowns 3 | . . . . . . . . . . . . . . . . . . . . . . . . 2 . . 1 . . . . Energy Bleed 2 | . . . . . . . . 1 . . . . . . . . . . . . . . . . . . 1 . . . . Interference 6 | . . . . . . . 2 . . . 3 . . . . . . . . . . . . 1 . . . . . . . Siege Activations 7 | . . . . . . . . . . . . 4 2 . 1 . . . . . . . . . . . . . . . . Total Turns 88 | . . . . . . . . . . . . 46 14 . 28 . . . . . . . . . . . . . . . . Longest Duration 28 | . . . . . . . . . . . . 18 8 . 28 . . . . . . . . . . . . . . . . Martial Activations . | . . . . . . . . . . . . . . . . . . . . . . . . . . . . . . . . Shielding Activations . | . . . . . . . . . . . . . . . . . . . . . . . . . . . . . . . . Robots Disrupted . | . . . . . . . . . . . . . . . . . . . . . . . . . . . . . . . . Combat Hostiles . | . . . . . . . . . . . . . . . . . . . . . . . . . . . . . . . . Robots Corrupted 2 | . . . . . . . . . . . 1 . . . . 1 . . . . . . . . . . . . . . . Combat Hostiles 1 | . . . . . . . . . . . 1 . . . . . . . . . . . . . . . . . . . . Parts Fried 6 | . . . 1 . . . . 2 . . 1 . . . . 2 . . . . . . . . . . . . . . . Impact Corruptions 1 | . . . . . . . . . . . . . . . . 1 . . . . . . . . . . . . . . . Robots Melted . | . . . . . . . . . . . . . . . . . . . . . . . . . . . . . . . . Combat Hostiles . | . . . . . . . . . . . . . . . . . . . . . . . . . . . . . . . . Parts Melted 5 | . . . . . . . . . . . 1 . . . . . . . . . 4 . . . . . . . . . . Heat Transferred 2910 | . . . 249 . . . . 136 . . 650 150 325 . 750 . . . . . . 250 . 400 . . . . . . . Parts Sabotaged 7 | . . . . . . . . . . . 7 . . . . . . . . . . . . . . . . . . . . Parts Stolen . | . . . . . . . . . . . . . . . . . . . . . . . . . . . . . . . . Parts Stripped . | . . . . . . . . . . . . . . . . . . . . . . . . . . . . . . . . Power Chain Reactions 14 | . . . 6 . . . . 8 . . . . . . . . . . . . . . . . . . . . . . . Alert | -11 -10 -10 -9 -9 -9 -8 -8 -8 -8 -8 -6 -6 -6 -6 -5 -5 -5 -5 -5 -5 -5 -4 -4 -4 -4 -4 -4 -3 -3 -3 -3 ------- Run | Yrd Mat Min Mat Min Exi Min Mat Sto Rec Scr Fac Low Low Dat Pro Fac Ext Cet Arc Hub Gar Fac Was Fac Upp Upp War Pro Res Qua Frg Maximum Alert Level 5 | . 1 . 3 2 . . 2 4 2 . 5 . . . . 4 4 3 2 4 5 5 4 5 . . . . 3 4 2 Low Security (%) 20 | 100 71 100 39 . . 100 24 25 5 . 11 . . . . 35 . . . 12 . . . . . . . . 9 . . Level 1 13 | . 28 . 11 . . . 66 5 15 . 4 . . . . . . . 3 13 . . . . . . . . 7 . 27 Level 2 21 | . . . 9 100 . . 8 38 79 . 1 . . . . 19 2 . 96 34 . . . . . . . . 79 44 72 Level 3 18 | . . . 39 . . . . 18 . . 21 . . . . 15 63 100 . 18 11 . 81 38 . . . . 2 54 . Level 4 12 | . . . . . . . . 12 . . 34 . . . . 29 33 . . 20 16 . 18 37 . . . . . . . Level 5 11 | . . . . . . . . . . . . . . . . . . . . . 72 97 . 19 . . . . . . . High Security 2 | . . . . . . . . . . . 26 . . . . . . . . . . 2 . 4 . . . . . . . Max Security . | . . . . . . . . . . . . . . . . . . . . . . . . . . . . . . . . Sterilizations 1 | . . . 1 . . . . . . . . . . . . . . . . . . . . . . . . . . . . Peak Influence 3270 | 15 261 95 1068 538 . 90 443 1446 561 . 2806 . . . . 1399 1329 915 580 1229 3270 1988 1100 2396 . . . . 731 1100 633 Initial 1716 | . . 95 21 413 . . 25 185 561 . . . . . . . 683 731 354 185 795 1716 1100 739 . . . . 150 407 618 Average 818 | 2 129 75 465 487 . 14 244 582 423 . 1334 . . . . 614 1015 824 537 646 2129 1710 1081 1379 . . . . 527 772 508 Influence Increases 25938 | 35 699 . 1659 320 . 160 1153 2091 209 . 3918 349 155 . 242 2233 1634 364 386 1422 2665 570 6 2701 140 90 . 95 1387 1167 88 Destroy 0b10 Robot/C 10760 | . 340 . 980 220 . 100 620 1000 40 . 1880 320 140 . 200 600 660 160 80 400 1100 140 . 900 120 80 . 60 480 140 . Destroy 0b10 Robot/NC 1740 | 35 105 . 310 30 . 40 180 225 55 . 130 5 5 . 15 130 95 10 45 65 . 35 . 140 . . . 10 55 20 . Destroy Leader 1942 | . 70 . 232 40 . 20 182 266 . . 356 20 10 . 20 144 64 . . 128 40 40 . 170 20 10 . 10 76 24 . Allied During Kill 2567 | . . . . . . . . 151 61 . 519 4 . . 7 3 655 162 125 532 201 51 . 96 . . . . . . . Successful Hack 850 | . 28 . 39 . . . 66 26 37 . 103 . . . . 142 10 1 . 8 . 20 . 198 . . . . 12 160 . Select Force Hacks 210 | . 60 . . . . . 30 60 . . . . . . . . . . . . . . . . . . . . . 60 . Disable Machine 1800 | . 30 . 75 30 . . 60 180 15 . 285 . . . . 210 30 15 90 105 30 165 . 285 . . . . 30 150 15 Anti-Garrison Action 950 | . . . . . . . . . . . . . . . . . . . . . 950 . . . . . . . . . . Destroy Structure 2374 | . 66 . 23 . . . 15 63 1 . 285 . . . . 314 90 16 46 154 179 74 6 702 . . . . 254 58 28 Advance Influence 150 | . . . . . . . . . . . . . . . . . . . . . . . . . . . . . 150 . . Partial Spotted 300 | . . . . . . . . . . . 45 . . . . 120 15 . . . . . . 30 . . . . 45 30 15 Lose Combat Pursuer 2295 | . . . . . . . . 120 . . 315 . . . . 570 15 . . 30 165 45 . 180 . . . 15 285 525 30 Influence Decreases 26066 | 35 454 190 654 915 465 94 778 1092 1463 186 1116 1376 608 1322 242 836 1724 786 741 815 532 1850 1344 1393 1016 373 1205 95 662 792 912 Entered New Map 14193 | . . 150 34 647 465 . 41 256 879 186 . 1038 338 1322 . . 714 576 531 345 342 1554 1294 317 876 283 1205 . . 318 482 Time Decay 8278 | 35 454 40 600 238 . 94 707 686 434 . 466 318 270 . 222 476 440 130 170 230 . 246 50 586 120 90 . 90 542 374 170 Search Patrol Dispatched 150 | . . . . . . . . . . . . . . . . . . . . . . . . . . . . . . . 150 Lost Part 1285 | . . . 20 30 . . 20 110 . . 190 . . . . 200 . . 20 80 50 10 . 210 20 . . 5 120 90 110 Lost Ally 1110 | . . . . . . . 10 40 . . 160 20 . . 20 160 120 80 20 160 140 40 . 130 . . . . . 10 . Purge Threat 1050 | . . . . . . . . . 150 . 300 . . . . . 450 . . . . . . 150 . . . . . . . Squads Dispatched 157 | . 6 . 5 . . . 2 14 . . 49 . . . . 24 2 . . 9 . 4 . 20 . . . . 11 7 4 Investigation 51 | . 5 . . . . . 1 5 . . 6 . . . . 9 1 . . . . 3 . 8 . . . . 6 4 3 Extermination 17 | . . . . . . . . . . . 3 . . . . 6 . . . 1 . . . 5 . . . . 1 1 . Reinforcement 33 | . 1 . 1 . . . 1 . . . 8 . . . . 3 1 . . 7 . . . 4 . . . . 4 2 1 Assault 45 | . . . 4 . . . . 3 . . 31 . . . . 3 . . . . . 1 . 3 . . . . . . . Garrison 11 | . . . . . . . . 6 . . 1 . . . . 3 . . . 1 . . . . . . . . . . . Intercept . | . . . . . . . . . . . . . . . . . . . . . . . . . . . . . . . . Searches Triggered 1 | . . . . . . . . . . . . . . . . . . . . . . . . . . . . . . . 1 Data Miner Redirects 14 | . . . . . . . . . . . . . . . . 3 . . . . . 3 . 5 . . . . . 3 . Construction Impeded 5 | . . . . . . . . . . . 2 . . . . 1 . . . 1 . . . 1 . . . . . . . Haulers Reinforced 6 | . . . . . . . . . . . 2 . . . . . . . . . . . . 1 . . . . 3 . . Active Scanning Responses . | . . . . . . . . . . . . . . . . . . . . . . . . . . . . . . . . Cargo Convoy Interrupts 1 | . . . . . . . . . . . 1 . . . . . . . . . . . . . . . . . . . . Stealth | -11 -10 -10 -9 -9 -9 -8 -8 -8 -8 -8 -6 -6 -6 -6 -5 -5 -5 -5 -5 -5 -5 -4 -4 -4 -4 -4 -4 -3 -3 -3 -3 --------- Run | Yrd Mat Min Mat Min Exi Min Mat Sto Rec Scr Fac Low Low Dat Pro Fac Ext Cet Arc Hub Gar Fac Was Fac Upp Upp War Pro Res Qua Frg Distress Signals 33 | . . . 1 . . . 1 . 1 . 5 . . . . 4 . 2 . 3 . . . 3 . . . 1 8 3 1 Communications Jammed . | . . . . . . . . . . . . . . . . . . . . . . . . . . . . . . . . Distress Signals . | . . . . . . . . . . . . . . . . . . . . . . . . . . . . . . . . Times Spotted 859 | . 23 . 61 11 . 5 41 70 1 . 130 15 8 . 9 91 27 9 22 31 54 20 6 74 6 5 . 7 66 45 22 Peak Tracking Total 18 | . 4 . 6 3 . 4 9 13 1 . 14 9 4 . 4 13 7 5 1 8 10 6 6 10 4 4 . 5 10 13 18 Tactical Retreats 76 | . . . . . . . . 4 . . 11 . . . . 17 1 . . 2 6 1 . 7 . . . 1 8 16 2 Traps | -11 -10 -10 -9 -9 -9 -8 -8 -8 -8 -8 -6 -6 -6 -6 -5 -5 -5 -5 -5 -5 -5 -4 -4 -4 -4 -4 -4 -3 -3 -3 -3 ------- Run | Yrd Mat Min Mat Min Exi Min Mat Sto Rec Scr Fac Low Low Dat Pro Fac Ext Cet Arc Hub Gar Fac Was Fac Upp Upp War Pro Res Qua Frg Traps Triggered 35 | . 4 . 4 . . . . 2 . . 4 . . . . 3 2 . . 2 7 2 . . . . 1 . . 2 2 Indirectly 1 | . . . . . . . . 1 . . . . . . . . . . . . . . . . . . . . . . . Trap Hack Attempts . | . . . . . . . . . . . . . . . . . . . . . . . . . . . . . . . . Triggered . | . . . . . . . . . . . . . . . . . . . . . . . . . . . . . . . . Disarmed 12 | . . . . . . . . . . . . . . . . . . . . . . 6 . 6 . . . . . . . Reprogrammed 8 | . . . . . . . . . . . . . . . . . 4 . . 4 . . . . . . . . . . . Reused . | . . . . . . . . . . . . . . . . . . . . . . . . . . . . . . . . Traps Extracted . | . . . . . . . . . . . . . . . . . . . . . . . . . . . . . . . . Installed . | . . . . . . . . . . . . . . . . . . . . . . . . . . . . . . . . Triggered . | . . . . . . . . . . . . . . . . . . . . . . . . . . . . . . . . Machines | -11 -10 -10 -9 -9 -9 -8 -8 -8 -8 -8 -6 -6 -6 -6 -5 -5 -5 -5 -5 -5 -5 -4 -4 -4 -4 -4 -4 -3 -3 -3 -3 ---------- Run | Yrd Mat Min Mat Min Exi Min Mat Sto Rec Scr Fac Low Low Dat Pro Fac Ext Cet Arc Hub Gar Fac Was Fac Upp Upp War Pro Res Qua Frg Machines Disabled 129 | . 2 . 5 2 . . 4 12 1 . 19 . . . . 14 6 1 6 7 7 11 . 19 . . . . 2 10 1 Max in Single Turn 5 | . 1 . 1 1 . . 1 2 1 . 4 . . . . 4 1 1 1 1 1 4 . 5 . . . . 1 2 1 Garrison Access 7 | . . . . . . . . . . . 1 . . . . . . . . . . 1 . 1 . . . . 3 1 . Garrison Relay 1 | . . . . . . . . . . . . . . . . . . . . . 1 . . . . . . . . . . Phase Generator 1 | . . . . . . . . . . . . . . . . . . . . . 1 . . . . . . . . . . Machines Repaired . | . . . . . . . . . . . . . . . . . . . . . . . . . . . . . . . . Machines Dismantled . | . . . . . . . . . . . . . . . . . . . . . . . . . . . . . . . . Machines Sabotaged . | . . . . . . . . . . . . . . . . . . . . . . . . . . . . . . . . Overloaded Fab Kills . | . . . . . . . . . . . . . . . . . . . . . . . . . . . . . . . . Hacking | -11 -10 -10 -9 -9 -9 -8 -8 -8 -8 -8 -6 -6 -6 -6 -5 -5 -5 -5 -5 -5 -5 -4 -4 -4 -4 -4 -4 -3 -3 -3 -3 --------- Run | Yrd Mat Min Mat Min Exi Min Mat Sto Rec Scr Fac Low Low Dat Pro Fac Ext Cet Arc Hub Gar Fac Was Fac Upp Upp War Pro Res Qua Frg Machines Accessed 201 | . 9 . 14 . 1 . 18 17 12 . 18 . . 4 . 23 11 2 . 5 2 7 . 23 . 1 . . 11 17 6 Terminals 113 | . 7 . 11 . . . 11 13 6 . 7 . . . . 11 10 2 . 4 2 4 . 11 . . . . 1 11 2 Fabricators 14 | . . . . . . . . . . . 3 . . . . 4 . . . . . 1 . 4 . . . . 2 . . Repair Stations 11 | . . . 1 . . . 2 1 . . 1 . . . . 1 . . . . . . . 1 . . . . 2 2 . Recycling Units 35 | . 2 . 1 . . . 2 2 6 . 5 . . . . 6 1 . . . . 1 . 4 . . . . 2 . 3 Scanalyzers 13 | . . . 1 . . . 2 . . . 2 . . . . 1 . . . . . . . 2 . . . . 1 3 1 Garrison Access 9 | . . . . . . . 1 1 . . . . . . . . . . . 1 . 1 . 1 . . . . 3 1 . Total Hacks 743 | . 36 . 52 . 1 . 90 51 36 . 64 . . 30 . 92 35 7 . 13 4 25 . 122 . 1 . . 18 54 12 Successful 454 | . 20 . 31 . 1 . 66 30 22 . 49 . . 30 . 56 16 2 . 6 . 18 . 68 . 1 . . 8 28 2 Failed 287 | . 16 . 21 . . . 24 20 13 . 15 . . . . 36 19 5 . 7 4 7 . 54 . . . . 10 26 10 Catastrophic 33 | . . . 1 . . . 1 1 1 . 1 . . . . 8 1 . . 2 2 . . 4 . . . . 3 5 3 Database Lockouts 2 | . . . . . . . . 1 1 . . . . . . . . . . . . . . . . . . . . . . Manual 439 | . 34 . 36 . . . 55 31 32 . 41 . . . . 56 27 1 . 7 . 17 . 63 . . . . 8 21 10 Terminals 423 | . 34 . 37 . . . 46 40 21 . 22 . . . . 38 34 7 . 12 4 14 . 71 . . . . 1 38 4 Fabricators 62 | . . . . . . . . . . . 15 . . . . 14 . . . . . 6 . 21 . . . . 6 . . Repair Stations 44 | . . . 2 . . . 15 6 . . 2 . . . . 3 . . . . . . . 9 . . . . 4 3 . Recycling Units 90 | . 2 . 2 . . . 6 3 15 . 13 . . . . 27 1 . . . . 4 . 9 . . . . 2 . 6 Scanalyzers 79 | . . . 11 . . . 19 . . . 12 . . . . 10 . . . . . . . 11 . . . . 2 12 2 Garrison Access 13 | . . . . . . . 4 2 . . . . . . . . . . . 1 . 1 . 1 . . . . 3 1 . Terminal Hacks 121 | . 7 . 4 . 1 . 11 12 3 . 5 . . 30 . 5 7 2 . 3 . 3 . 15 . 1 . . . 12 . Record 15 | . . . . . 1 . . . . . . . . 11 . . . 2 . . . . . . . . . . . 1 . Part Schematic 9 | . . . . . . . . . . . . . . 8 . . . . . . . . . 1 . . . . . . . Robot Schematic 12 | . . . . . . . 2 1 . . . . . 8 . . . . . . . . . 1 . . . . . . . Robot Analysis 20 | . 6 . 2 . . . 6 1 1 . . . . . . 1 . . . . . 1 . . . . . . . 2 . Prototype ID Bank 13 | . . . 1 . . . 1 2 . . . . . 3 . 1 1 . . . . . . 2 . . . . . 2 . Open Door 8 | . . . . . . . . 6 . . . . . . . 1 . . . . . . . . . 1 . . . . . Branch Access Points 2 | . . . . . . . 1 . . . . . . . . . . . . . . . . 1 . . . . . . . Emergency Access Points 1 | . . . . . . . . . . . . . . . . . . . . . . . . . . . . . . 1 . Machine Index 1 | . . . . . . . . . . . . . . . . . . . . . . . . 1 . . . . . . . Terminal Index 12 | . 1 . 1 . . . 1 1 1 . 1 . . . . 1 1 . . 1 . 1 . 1 . . . . . 1 . Repair Station Index 1 | . . . . . . . . . . . . . . . . . . . . . . . . . . . . . . 1 . Garrison Index 1 | . . . . . . . . . . . . . . . . . . . . 1 . . . . . . . . . . . Unreport Threat 7 | . . . . . . . . . 1 . 2 . . . . . 3 . . . . . . 1 . . . . . . . Locate Traps 4 | . . . . . . . . 1 . . . . . . . . . . . . . . . 2 . . . . . 1 . Disarm Traps 2 | . . . . . . . . . . . . . . . . . . . . . . 1 . 1 . . . . . . . Reprogram Traps 2 | . . . . . . . . . . . . . . . . . 1 . . 1 . . . . . . . . . . . Recall Investigation 1 | . . . . . . . . . . . . . . . . . 1 . . . . . . . . . . . . . . Recall Extermination 4 | . . . . . . . . . . . 1 . . . . . . . . . . . . 2 . . . . . 1 . Recall Reinforcements 4 | . . . . . . . . . . . 1 . . . . 1 . . . . . . . 1 . . . . . 1 . Zone Layout 2 | . . . . . . . . . . . . . . . . . . . . . . . . 1 . . . . . 1 . Fabricator Hacks 18 | . . . . . . . . . . . 4 . . . . 3 . . . . . 3 . 8 . . . . . . . Network Status 5 | . . . . . . . . . . . 2 . . . . 1 . . . . . 1 . 1 . . . . . . . Load Schematic 7 | . . . . . . . . . . . 2 . . . . 1 . . . . . 1 . 3 . . . . . . . Build 6 | . . . . . . . . . . . . . . . . 1 . . . . . 1 . 4 . . . . . . . Repair Station Hacks 24 | . . . 1 . . . 11 2 . . . . . . . 2 . . . . . . . 6 . . . . 2 . . Scan Component 12 | . . . . . . . 6 1 . . . . . . . 1 . . . . . . . 3 . . . . 1 . . Repair 11 | . . . . . . . 5 1 . . . . . . . 1 . . . . . . . 3 . . . . 1 . . Refit 1 | . . . 1 . . . . . . . . . . . . . . . . . . . . . . . . . . . . Recycling Unit Hacks 8 | . . . . . . . . . . . 1 . . . . 7 . . . . . . . . . . . . . . . Process 3 | . . . . . . . . . . . . . . . . 3 . . . . . . . . . . . . . . . Report Inventory 2 | . . . . . . . . . . . . . . . . 2 . . . . . . . . . . . . . . . Retrieve Matter 2 | . . . . . . . . . . . . . . . . 2 . . . . . . . . . . . . . . . Retrieve Components 1 | . . . . . . . . . . . 1 . . . . . . . . . . . . . . . . . . . . Scanalyzer 49 | . . . 10 . . . 15 . . . 11 . . . . 6 . . . . . . . 4 . . . . . 3 . Insert Component 25 | . . . 5 . . . 7 . . . 5 . . . . 4 . . . . . . . 2 . . . . . 2 . Analyze 24 | . . . 5 . . . 8 . . . 6 . . . . 2 . . . . . . . 2 . . . . . 1 . Garrison Access Hacks 7 | . . . . . . . . . . . . . . . . . . . . 1 . 1 . 1 . . . . 3 1 . Unlock Access 1 | . . . . . . . . . . . . . . . . . . . . 1 . . . . . . . . . . . Seal Access 6 | . . . . . . . . . . . . . . . . . . . . . . 1 . 1 . . . . 3 1 . Unauthorized Hacks 227 | . 13 . 16 . . . 29 16 19 . 28 . . . . 33 9 . . 2 . 11 . 34 . . . . 3 12 2 Terminals 125 | . 11 . 14 . . . 21 10 8 . 7 . . . . 11 8 . . 2 . 5 . 21 . . . . . 7 . Track 1 | . . . . . . . . . . . . . . . . . . . . . . . . 1 . . . . . . . Assimilate 7 | . . . . . . . 1 . . . . . . . . 1 1 . . . . . . 3 . . . . . 1 . Botnet 59 | . 5 . 4 . . . 9 5 3 . 3 . . . . 5 7 . . 2 . 3 . 8 . . . . . 5 . Disrupt 1 | . . . . . . . . . . . . . . . . . . . . . . . . 1 . . . . . . . Operators 8 | . 1 . . . . . 2 . . . . . . . . 1 . . . . . 1 . 2 . . . . . 1 . Skim 49 | . 5 . 10 . . . 9 5 5 . 4 . . . . 4 . . . . . 1 . 6 . . . . . . . Fabricators 24 | . . . . . . . . . . . 9 . . . . 6 . . . . . 3 . 6 . . . . . . . Report 6 | . . . . . . . . . . . 3 . . . . 1 . . . . . 1 . 1 . . . . . . . Liberate 12 | . . . . . . . . . . . 3 . . . . 4 . . . . . 1 . 4 . . . . . . . Haulers 6 | . . . . . . . . . . . 3 . . . . 1 . . . . . 1 . 1 . . . . . . . Repair Stations 7 | . . . . . . . 1 1 . . 1 . . . . 1 . . . . . . . . . . . . 1 2 . Mechanics 2 | . . . . . . . 1 . . . 1 . . . . . . . . . . . . . . . . . . . . Patch 5 | . . . . . . . . 1 . . . . . . . 1 . . . . . . . . . . . . 1 2 . Recycling Units 61 | . 2 . 2 . . . 2 3 11 . 11 . . . . 15 1 . . . . 3 . 7 . . . . 2 . 2 Reject 18 | . . . 1 . . . 1 . 6 . 3 . . . . 4 . . . . . 1 . 2 . . . . . . . Recyclers 8 | . . . 1 . . . . . 2 . 2 . . . . 1 . . . . . 1 . 1 . . . . . . . Mask 10 | . . . . . . . 1 1 3 . 1 . . . . 4 . . . . . . . . . . . . . . . Tunnel 4 | . 2 . . . . . . 2 . . . . . . . . . . . . . . . . . . . . . . . Fedlink 18 | . . . . . . . . . . . 5 . . . . 6 . . . . . 1 . 3 . . . . 2 . 1 Scrapoids 2 | . . . . . . . . . . . . . . . . . . . . . . . . 1 . . . . . . 1 Scraphulk 1 | . . . . . . . . . . . . . . . . . 1 . . . . . . . . . . . . . . Scanalyzers 4 | . . . . . . . 1 . . . . . . . . . . . . . . . . . . . . . . 3 . Researchers 1 | . . . . . . . . . . . . . . . . . . . . . . . . . . . . . . 1 . Extract 3 | . . . . . . . 1 . . . . . . . . . . . . . . . . . . . . . . 2 . Garrison Access 6 | . . . . . . . 4 2 . . . . . . . . . . . . . . . . . . . . . . . Redirect 1 | . . . . . . . 1 . . . . . . . . . . . . . . . . . . . . . . . . Reprogram 2 | . . . . . . . 1 1 . . . . . . . . . . . . . . . . . . . . . . . Intercept 2 | . . . . . . . 1 1 . . . . . . . . . . . . . . . . . . . . . . . Watchers 1 | . . . . . . . 1 . . . . . . . . . . . . . . . . . . . . . . . . Data Cores Recovered 5 | . . . 2 . . . 1 . . . 1 . . . . . . . . . . 1 . . . . . . . . . Used 1 | . . . . . . . . . . . . . . . . . . . . . . 1 . . . . . . . . . Hacking Detections 160 | . 7 . 13 . . . 17 12 11 . 14 . . . . 18 10 3 . 4 2 6 . 19 . . . . 4 14 6 Full Trace Events 10 | . 1 . . . . . . 1 1 . . . . . . . . . . . 1 1 . 4 . . . . . . 1 Feedback Events 2 | . . . . . . . . . . . . . . . . . . . . . 1 . . . . . . . . . 1 Corruption 2 | . . . . . . . . . . . . . . . . . . . . . 1 . . . . . . . . . 1 Feedback Blocked . | . . . . . . . . . . . . . . . . . . . . . . . . . . . . . . . . Robot Schematics Acquired 12 | . . . . . . . 2 1 . . . . . 8 . . . . . . . . . 1 . . . . . . . Robots Built 7 | . . . . . . . . . . . . . . . . 3 . . . . . . . 4 . . . . . . . Authchips . | . . . . . . . . . . . . . . . . . . . . . . . . . . . . . . . . Time 752 | . . . . . . . . . . . . . . . . 169 . . . . . . . 583 . . . . . . . Total Robot Build Rating 40 | . . . . . . . . . . . . . . . . 18 . . . . . . . 22 . . . . . . . Part Schematics Acquired 39 | . . . 5 . . . 15 . . . 4 . . 8 . 2 . . . . . . . 2 . . . . . 3 . Parts Built 2 | . . . . . . . . . . . . . . . . . . . . . . 2 . . . . . . . . . Authchips . | . . . . . . . . . . . . . . . . . . . . . . . . . . . . . . . . Time 117 | . . . . . . . . . . . . . . . . . . . . . . 117 . . . . . . . . . Total Part Build Rating 14 | . . . . . . . . . . . . . . . . . . . . . . 14 . . . . . . . . . Parts Repaired 11 | . . . . . . . 5 1 . . . . . . . 1 . . . . . . . 3 . . . . 1 . . Time 470 | . . . . . . . 220 44 . . . . . . . 56 . . . . . . . 122 . . . . 28 . . Parts Recycled . | . . . . . . . . . . . . . . . . . . . . . . . . . . . . . . . . Recycled Matter 36 | . . . . . . . . . . . . . . . . 36 . . . . . . . . . . . . . . . Retrieved Matter 36 | . . . . . . . . . . . . . . . . 36 . . . . . . . . . . . . . . . Retrieved Components 3 | . . . . . . . . . . . 3 . . . . . . . . . . . . . . . . . . . . Parts Scanalyzed 24 | . . . 5 . . . 7 . . . 5 . . . . 3 . . . . . . . 2 . . . . . 2 . Part Schematics Acquired 18 | . . . 5 . . . 5 . . . 4 . . . . 2 . . . . . . . 1 . . . . . 1 . Parts Damaged 4 | . . . 1 . . . 1 . . . . . . . . 1 . . . . . . . 1 . . . . . . . Bothacking | -11 -10 -10 -9 -9 -9 -8 -8 -8 -8 -8 -6 -6 -6 -6 -5 -5 -5 -5 -5 -5 -5 -4 -4 -4 -4 -4 -4 -3 -3 -3 -3 ------------ Run | Yrd Mat Min Mat Min Exi Min Mat Sto Rec Scr Fac Low Low Dat Pro Fac Ext Cet Arc Hub Gar Fac Was Fac Upp Upp War Pro Res Qua Frg Used RIF Installer 1 | . . . . . . . . . . . . . . . . . . . . . 1 . . . . . . . . . . Robots Hacked . | . . . . . . . . . . . . . . . . . . . . . . . . . . . . . . . . Non-combat . | . . . . . . . . . . . . . . . . . . . . . . . . . . . . . . . . Combat . | . . . . . . . . . . . . . . . . . . . . . . . . . . . . . . . . Robot Hacks Applied . | . . . . . . . . . . . . . . . . . . . . . . . . . . . . . . . . Relay Couplers Released 3 | . . . . . . . . . . . . . . . . . . . . . 3 . . . . . . . . . . Machine Destruction 3 | . . . . . . . . . . . . . . . . . . . . . 3 . . . . . . . . . . Fabnet Peak Effective % . | . . . . . . . . . . . . . . . . . . . . . . . . . . . . . . . . Robots Rewired 17 | . . . . . . . . . . . . 1 . . . . 6 . . . 10 . . . . . . . . . . Allies Hacked 1 | . . . . . . . . . . . 1 . . . . . . . . . . . . . . . . . . . . Hacks Repelled . | . . . . . . . . . . . . . . . . . . . . . . . . . . . . . . . . Allies | -11 -10 -10 -9 -9 -9 -8 -8 -8 -8 -8 -6 -6 -6 -6 -5 -5 -5 -5 -5 -5 -5 -4 -4 -4 -4 -4 -4 -3 -3 -3 -3 -------- Run | Yrd Mat Min Mat Min Exi Min Mat Sto Rec Scr Fac Low Low Dat Pro Fac Ext Cet Arc Hub Gar Fac Was Fac Upp Upp War Pro Res Qua Frg Total Allies 86 | . . . . . . . 1 12 . 5 . 1 . . 1 9 17 5 . . 12 . . 22 . . . . . 1 . Largest Group 15 | . . . . . . . . 10 10 15 15 1 . . 1 3 15 12 11 9 9 3 . 11 . . . . . 1 . Highest-Rated Group 935 | . . . . . . . . 173 173 411 411 29 . . 96 90 716 935 910 711 276 228 . 368 . . . . . 10 . Highest-Rated Ally 159 | . . . . . . . . 29 29 50 50 29 . . 96 41 159 159 159 123 148 148 . 54 . . . . . 10 . Total Orders 36 | . . . . . . . . 1 . 2 5 . . . . 17 2 . 3 1 2 1 . 2 . . . . . . . STAY 9 | . . . . . . . . 1 . 1 1 . . . . 1 1 . 2 . 1 . . 1 . . . . . . . FOLLOW 5 | . . . . . . . . . . 1 . . . . . . 1 . 1 . 1 . . 1 . . . . . . . AID 2 | . . . . . . . . . . . . . . . . . . . . 1 . 1 . . . . . . . . . EXPLORE 15 | . . . . . . . . . . . 4 . . . . 11 . . . . . . . . . . . . . . . RETURN 5 | . . . . . . . . . . . . . . . . 5 . . . . . . . . . . . . . . . Ally Attacks 615 | . . . . . . . . 7 4 . 170 7 . . 3 19 97 43 15 111 50 25 . 64 . . . . . . . Total Damage 14935 | . . . . . . . . 83 60 . 2962 75 . . 140 486 2480 1041 218 3391 1874 609 . 1516 . . . . . . . Kills 107 | . . . . . . . . 2 . . 26 . . . . 3 26 5 4 22 11 2 . 6 . . . . . . . Allies Corrupted 3 | . . . . . . . . . . . 1 . . . . . . . . 2 . . . . . . . . . . . Allies Melted 2 | . . . . . . . . . . . . . . . 1 1 . . . . . . . . . . . . . . . Intel | -11 -10 -10 -9 -9 -9 -8 -8 -8 -8 -8 -6 -6 -6 -6 -5 -5 -5 -5 -5 -5 -5 -4 -4 -4 -4 -4 -4 -3 -3 -3 -3 ------- Run | Yrd Mat Min Mat Min Exi Min Mat Sto Rec Scr Fac Low Low Dat Pro Fac Ext Cet Arc Hub Gar Fac Was Fac Upp Upp War Pro Res Qua Frg Active Infowar (turns) 6813 | 65 759 . . . . . . . . 1072 2165 700 598 138 994 229 . . . 85 . . . . . . . . 8 . . Optics 2775 | . . . . . . . . . . . 108 700 598 138 994 229 . . . . . . . . . . . . 8 . . Terrain 824 | 65 759 . . . . . . . . . . . . . . . . . . . . . . . . . . . . . . Decoding 3833 | . . . . . . . . . . 1072 2165 596 . . . . . . . . . . . . . . . . . . . Machine Analysis 179 | . . . . . . . . . . . 94 . . . . . . . . 85 . . . . . . . . . . . Robot Analysis Total 20 | . 6 . 2 . . . 6 1 1 . . . . . . 1 . . . . . 1 . . . . . . . 2 . Derelict Logs Recovered 8 | . . 1 . 1 . . . . . . . 1 . . 3 . . . . . . . . . 1 1 . . . . . Drone Launches 15 | . . . . . . . . . . . 4 . . . . 11 . . . . . . . . . . . . . . . Drone Recoveries 8 | . . . . . . . . . . . . . . . . 8 . . . . . . . . . . . . . . . Decoded 0b10 Intel 61 | . . . . . . . . . . . 61 . . . . . . . . . . . . . . . . . . . . Traps 7 | . . . . . . . . . . . 7 . . . . . . . . . . . . . . . . . . . . Emergency Access 6 | . . . . . . . . . . . 6 . . . . . . . . . . . . . . . . . . . . Items 47 | . . . . . . . . . . . 47 . . . . . . . . . . . . . . . . . . . . Patrols 1 | . . . . . . . . . . . 1 . . . . . . . . . . . . . . . . . . . . Exploration | -11 -10 -10 -9 -9 -9 -8 -8 -8 -8 -8 -6 -6 -6 -6 -5 -5 -5 -5 -5 -5 -5 -4 -4 -4 -4 -4 -4 -3 -3 -3 -3 ------------- Run | Yrd Mat Min Mat Min Exi Min Mat Sto Rec Scr Fac Low Low Dat Pro Fac Ext Cet Arc Hub Gar Fac Was Fac Upp Upp War Pro Res Qua Frg Turns Passed 33845 | 149 1282 96 2869 500 658 476 3239 2753 1077 2831 2165 700 598 138 994 2038 1087 266 354 481 2940 541 109 1909 246 182 56 338 1543 871 359 Spaces Moved 29373 | 55 635 61 1451 257 401 264 1532 1276 569 1626 2488 356 333 83 559 2523 1462 370 370 571 2209 984 201 2793 508 340 112 787 2366 1340 491 Core 65 | 1 . . . . . . . . . . . . . . . . . . . . 1 . . . . . . . . . 63 Treads 9529 | 54 635 61 1451 257 401 264 1532 1276 569 1624 44 356 333 83 559 11 . . . . 19 . . . . . . . . . . Legs 1632 | . . . . . . . . . . . . . . . . . . . . . 1632 . . . . . . . . . . Wheels . | . . . . . . . . . . . . . . . . . . . . . . . . . . . . . . . . Hover 18147 | . . . . . . . . . . 2 2444 . . . . 2512 1462 370 370 571 557 984 201 2793 508 340 112 787 2366 1340 428 Flight . | . . . . . . . . . . . . . . . . . . . . . . . . . . . . . . . . Fastest Speed 30 | 50 160 160 160 160 160 160 160 160 160 160 40 160 160 160 160 31 31 35 38 33 30 36 36 36 38 40 40 40 40 48 50 Average Speed 86 | 158 160 160 160 160 160 160 169 169 160 160 56 160 160 160 160 45 33 35 45 47 97 38 36 40 39 40 41 40 47 51 54 Slowest Speed 1150 | 160 160 160 240 160 160 160 170 240 160 330 160 160 163 160 160 160 96 38 94 102 1150 40 36 160 40 40 101 45 55 54 147 Overloaded Moves 32 | . . . . . . . . . . . . . . . . . . . . 13 19 . . . . . . . . . . Propulsion Burnouts 1 | . . . . . . . . . . . . . . . . . . . . . 1 . . . . . . . . . . Robots Hopped . | . . . . . . . . . . . . . . . . . . . . . . . . . . . . . . . . Potential Cave-ins 9 | . . . . . . . . . . . . . . . . . . . . . . . . . . . . . . 4 5 Cave-ins Triggered . | . . . . . . . . . . . . . . . . . . . . . . . . . . . . . . . . Exploration Rate (%) 65 | 4 83 30 93 60 77 53 92 93 91 81 56 61 61 74 71 66 88 81 84 55 93 15 92 39 64 54 16 92 63 97 26 Regions Visited 31 Branch Regions 21 Pre-discovered Areas 23 | . 3 . 5 . . . 5 5 2 . 1 . . 1 . . . . . . . . . 1 . . . . . . . Known Exits Taken 19 | . 1 1 1 . . 1 1 1 1 1 1 1 1 . 1 1 . . . 1 . . . 1 1 1 . 1 1 . . Unknown Exits Taken 9 | 1 . . . 1 1 . . . . . . . . 1 . . 1 1 1 . . . . . . . 1 . . 1 . Scrap Searched 18 | . . . . 1 . 1 . . . 7 . 1 2 . . . . . . . . . . . 4 . . 2 . . . Spaces Dug 138 | . 7 . . . . . . . . . 2 . . . 44 6 . . . 3 . . 3 28 . . . . 30 7 8 Terrain Destroyed 1968 | . 63 . 14 . . 2 1 53 . . 308 45 97 . 183 184 22 1 34 37 131 28 3 390 42 20 . 50 215 30 15 Melee 1 | . . . . . . . . . . . . . . . . 1 . . . . . . . . . . . . . . . Projectile 429 | . . . . . . 2 1 5 . . 8 . 1 . 2 32 22 1 34 37 34 13 3 138 20 . . . 40 21 15 AOE 1532 | . 63 . 14 . . . . 48 . . 299 45 96 . 181 150 . . . . 94 15 . 251 22 20 . 50 175 9 . Terrain Rammed . | . . . . . . . . . . . . . . . . . . . . . . . . . . . . . . . . Walls Destroyed . | . . . . . . . . . . . . . . . . . . . . . . . . . . . . . . . . Machines Disabled . | . . . . . . . . . . . . . . . . . . . . . . . . . . . . . . . . Actions | -11 -10 -10 -9 -9 -9 -8 -8 -8 -8 -8 -6 -6 -6 -6 -5 -5 -5 -5 -5 -5 -5 -4 -4 -4 -4 -4 -4 -3 -3 -3 -3 --------- Run | Yrd Mat Min Mat Min Exi Min Mat Sto Rec Scr Fac Low Low Dat Pro Fac Ext Cet Arc Hub Gar Fac Was Fac Upp Upp War Pro Res Qua Frg Total 34898 | 81 762 60 1732 291 421 283 1937 1540 696 1854 2963 454 374 89 626 3109 1976 489 491 717 2830 1099 224 3292 535 382 120 805 2629 1472 565 Wait 2183 | . 8 . 25 . . . 231 66 101 171 82 49 14 . 35 240 345 82 55 82 252 36 1 163 10 33 8 . 23 31 40 Move 29344 | 54 634 60 1450 256 400 263 1531 1275 568 1625 2487 355 332 82 558 2522 1461 369 369 571 2208 984 200 2792 507 339 111 786 2365 1339 491 Hop . | . . . . . . . . . . . . . . . . . . . . . . . . . . . . . . . . Pick Up 352 | 2 16 . 23 . 6 . 18 12 2 19 61 4 3 . 3 40 10 5 5 5 23 13 2 35 3 2 . 4 21 15 . Fast Attach 214 | 7 5 . 8 1 . . 3 3 3 7 25 3 2 3 . 21 6 2 6 6 28 7 2 29 . . . 2 21 11 3 Attach 183 | . . . 3 3 4 . 4 7 . 2 41 5 . . 3 26 . 1 3 7 16 4 . 18 3 . . 1 18 11 3 Detach 122 | . 1 . . 1 4 . 1 . 1 2 21 5 . 1 3 10 2 2 6 5 19 3 2 14 . . . . 15 4 . Swap 495 | . 15 . 36 4 2 4 26 22 . 12 50 2 5 . . 71 18 6 6 9 55 11 5 60 2 5 1 4 47 17 . Drop 457 | . 9 . 43 . 5 1 25 10 2 16 66 5 4 3 3 39 23 9 6 3 52 20 4 52 . 2 . 5 35 15 . Fire 1358 | 18 74 . 144 26 . 15 98 143 19 . 127 16 8 . 21 135 47 13 35 28 91 21 8 129 10 1 . 3 84 29 15 Melee 1 | . . . . . . . . . . . . . . . . 1 . . . . . . . . . . . . . . . Ram 5 | . . . . . . . . . . . . . . . . 4 . . . 1 . . . . . . . . . . . Kick . | . . . . . . . . . . . . . . . . . . . . . . . . . . . . . . . . Crush 3 | . . . . . . . . . . . . . 3 . . . . . . . . . . . . . . . . . . Escape Stasis 63 | . . . . . . . . 2 . . 2 . . . . . 26 . . . 20 . . . . . . . . . 13 Rewire 118 | . . . . . . . . . . . 1 10 3 . . . 38 . . . 66 . . . . . . . . . . Trap . | . . . . . . . . . . . . . . . . . . . . . . . . . . . . . . . . Miscellaneous . | . . . . . . . . . . . . . . . . . . . . . . . . . . . . . . . . Route ------- -11/Scrapyard -10/Materials (discovered 5 exits: *Mat x3 / *Min / *Sub) -10/Mines -9/Materials (discovered 4 exits: *Mat x3 / *Min) -9/Mines (discovered 2 exits: *Mat / *Exi) -9/Exiles -8/Mines -8/Materials (discovered 5 exits: *Fac x3 / *Sto x2) -8/Storage (discovered 2 exits: Fac / *Rec) -8/Recycling (discovered 2 exits: *Fac / *Scr) -8/Scraptown (discovered 2 exits: *Fac x2) -6/Factory (discovered 5 exits: *Fac x4 / *Low) -6/Lower Caves -6/Lower Caves (discovered 2 exits: Fac / *Dat) -6/Data Miner -5/Proximity Caves -5/Factory (discovered 4 exits: *Fac x2 / *Ext x2) -5/Extension (discovered 2 exits: *Fac / *Cet) -5/Cetus (discovered 2 exits: *Fac / [*Arc]) -5/Archives (discovered 3 exits: *Fac / *Hub x2) -5/Hub_04(d) (discovered 3 exits: *Fac x2 / Gar) -5/Garrison (discovered 3 exits: *Fac x3) -4/Factory -4/Waste -4/Factory (discovered 6 exits: *Res x4 / *Upp x2) -4/Upper Caves -4/Upper Caves (discovered 2 exits: Res / *War) -4/Warlord -3/Proximity Caves -3/Research (discovered 4 exits: *Res x3 / *Qua) -3/Quarantine (discovered 3 exits: *Res / [*Sec] / *Frg) -3/Protoforge History --------- Turn | Location | Event 14 | -11/Scrapyard | Discovered new exit (range 16) 150 | -11/Scrapyard | Entered Materials 268 | -10/Materials | Discovered new exit (range 12) 303 | -10/Materials | Build established: Mutant 713 | -10/Materials | Learned location of 2 exits from Subcaves 785 | -10/Materials | Identified exit to Materials 847 | -10/Materials | Learned location of Mines (-8) 879 | -10/Materials | Discovered new exit (range 12) 897 | -10/Materials | Learned 4 Recycling zone layouts 936 | -10/Materials | Learned Storage stockpile data 964 | -10/Materials | Loaded intel: 1 repair station location 983 | -10/Materials | Learned 4 Subcaves zone layouts 1011 | -10/Materials | Learned location of 1 exit from Storage 1050 | -10/Materials | Identified exit to Mines 1050 | -10/Materials | Identified exit to Subcaves 1099 | -10/Materials | Learned Storage stockpile data 1432 | -10/Materials | Entered Mines 1447 | -10/Mines | Learned Materials emergency access door positions 1469 | -10/Mines | Found a hidden stash of uninstalled traps 1501 | -10/Mines | Discovered exit to Materials (range 12) 1528 | -10/Mines | Entered Materials 1528 | -9/Materials | Evolved 2 slots: Weapon x2 1829 | -9/Materials | Build established: Tank 1851 | -9/Materials | Discovered new exit (range 12) 2583 | -9/Materials | Discovered new exit (range 9) 2827 | -9/Materials | Identified exit to Mines 2857 | -9/Materials | Learned Storage emergency access door positions 2878 | -9/Materials | Learned location of Recycling (-8) 2880 | -9/Materials | Build established: Gunner 2890 | -9/Materials | Learned Materials emergency access door positions 2891 | -9/Materials | Learned location of Storage (-8) 2892 | -9/Materials | Learned Storage trap positions 2893 | -9/Materials | Learned location of 1 exit from Recycling 2903 | -9/Materials | Learned location of Zion (-7) 2954 | -9/Materials | Identified exit to Materials 3128 | -9/Materials | First assault squad dispatched 3304 | -9/Materials | Destroyed 10 combat bots 3926 | -9/Materials | Learned Materials stockpile data 4039 | -9/Materials | Learned Storage security intel 4080 | -9/Materials | Learned 2 Materials zone layouts 4131 | -9/Materials | Learned Materials emergency access door positions 4252 | -9/Materials | Sterilization system engaged 4252 | -9/Materials | Non-combat units ordered to evacuate 4352 | -9/Materials | Combat units ordered to evacuate 4397 | -9/Materials | Entered Mines 4569 | -9/Mines | Discovered exit to Materials (range 13) 4890 | -9/Mines | Deemed a non-threat by the Exiles lab entrance 4890 | -9/Mines | Discovered new exit (range 5) 4897 | -9/Mines | Entered Exiles 4897 | -9/Exiles | Found Exiles lab abandoned 5271 | -9/Exiles | Build established: Scavenger-Tank 5542 | -9/Exiles | Discovered new exit (range 10) 5555 | -9/Exiles | Entered Mines 6025 | -8/Mines | Discovered exit to Materials (range 5) 6031 | -8/Mines | Entered Materials 6031 | -8/Materials | Evolved 2 slots: Propulsion x1, Utility x1 6032 | -8/Materials | Identified exit to Factory 6186 | -8/Materials | Destroyed 8 combat bots 6438 | -8/Materials | Identified exit to Storage 6495 | -8/Materials | Build established: Tank 6639 | -8/Materials | Repaired Minigun 6676 | -8/Materials | Repaired Broken Lgt. Treads 6845 | -8/Materials | Build established: Gunner 7249 | -8/Materials | Discovered exit to Factory (range 5) 7390 | -8/Materials | Learned Storage trap positions 7524 | -8/Materials | Learned 4 Recycling zone layouts 7621 | -8/Materials | Discovered exit to Factory (range 16) 7900 | -8/Materials | Build established: Hacker-Gunner 8215 | -8/Materials | Repaired Gauss Rifle 8267 | -8/Materials | Repaired Imp. Assault Rifle 8320 | -8/Materials | Repaired Imp. Assault Rifle 9270 | -8/Materials | Entered Storage 9272 | -8/Storage | Identified exit to Recycling 9273 | -8/Storage | Loaded intel: 15 trap records 9305 | -8/Storage | Build established: Scavenger-Gunner 9658 | -8/Storage | Repaired Gauss Rifle 9812 | -8/Storage | Found Prototype Launcher 9812 | -8/Storage | Identified Scatter Rocket Array 10011 | -8/Storage | Garrison activated, responded to threat 10152 | -8/Storage | Learned Factory terminal intel 10157 | -8/Storage | Learned location of Armory (-3) 10194 | -8/Storage | Learned location of 2 exits from Lower Caves 10228 | -8/Storage | Learned Storage emergency access door positions 10267 | -8/Storage | Learned 2 Storage zone layouts 10307 | -8/Storage | Used back door to open Recycling access 10329 | -8/Storage | Learned 8 Factory zone layouts 10377 | -8/Storage | Learned Factory fabricator intel 10547 | -8/Storage | Build established: Scavenger-Tank 11165 | -8/Storage | Central database locked down 11169 | -8/Storage | Assisted by bots powering up and referring to "LRC-V3" 11469 | -8/Storage | Build established: Commander-Tank 11648 | -8/Storage | Garrison activated, responded to threat 11670 | -8/Storage | First assault squad dispatched 11716 | -8/Storage | Core integrity fell below 50% 11721 | -8/Storage | Destroyed 9 combat bots 11754 | -8/Storage | Lost 9 parts (1p3n5w) 11989 | -8/Storage | Build established: Commander-Mutant 12023 | -8/Storage | Entered Recycling 12023 | -8/Recycling | Accompanied by 10 allies 12024 | -8/Recycling | Identified exit to Factory 12025 | -8/Recycling | Identified exit to Scraptown 12671 | -8/Recycling | Build established: Commander-Gunner 12929 | -8/Recycling | Learned location of Lower Caves (-7) 12959 | -8/Recycling | Scanned before Scraplab entrance 12965 | -8/Recycling | Learned 2 Lower Caves zone layouts 12991 | -8/Recycling | Learned location of 1 exit from Lower Caves 13006 | -8/Recycling | Learned 12 Factory zone layouts 13012 | -8/Recycling | Learned location of 1 exit from Lower Caves 13058 | -8/Recycling | Entered Scraplab 13100 | -8/Recycling | Entered Scraptown 13100 | -8/Scraptown | Accompanied by 10 allies 13407 | -8/Scraptown | Discovered exit to Factory (range 11) 13560 | -8/Scraptown | Visited UFD Registry 13560 | -8/Scraptown | Registered with UFD as "Carbonbucket" 13599 | -8/Scraptown | Build established: Commander-Tank 13647 | -8/Scraptown | Visited Cyclists 13663 | -8/Scraptown | Visited CR-KLE's Repair Center 13826 | -8/Scraptown | System corruption cleaned by C-Scrubber 14040 | -8/Scraptown | Visited LU-1G1's Boring Crew 14063 | -8/Scraptown | Visited Junk Cannon Lab 14204 | -8/Scraptown | Visited Scrap Suit Storage 14228 | -8/Scraptown | Visited Scrapoid Pod Storage 14237 | -8/Scraptown | Found Scrapoid Pod 14457 | -8/Scraptown | Visited Junk Repository 14529 | -8/Scraptown | Build established: Commander-Gunner 14559 | -8/Scraptown | Visited DA-N13 Charitable Foundation 14565 | -8/Scraptown | Found DCF Scrap (28 items) 14657 | -8/Scraptown | Scrapoid Pod released 08S05-D (x5) 14849 | -8/Scraptown | Visited Infowarlord's Domain 14893 | -8/Scraptown | Visited Curators Association 14918 | -8/Scraptown | Visited Cartography Club 14975 | -8/Scraptown | Build established: Commander-Tank 15478 | -8/Scraptown | CR-KLE repaired 7 parts 15676 | -8/Scraptown | Discovered exit to Factory (range 5) 15687 | -8/Scraptown | Build established: Commander-Gunner 15820 | -8/Scraptown | Met Optimus 15820 | -8/Scraptown | Accepted into 0bPrime 15931 | -8/Scraptown | Entered Factory 15931 | -6/Factory | Accompanied by 15 allies 15931 | -6/Factory | Evolved 4 slots: Propulsion x2, Utility x2 15932 | -6/Factory | Identified exit to Lower Caves 15933 | -6/Factory | Identified exit to Factory 15934 | -6/Factory | Loaded intel: 26 terminal locations 15935 | -6/Factory | Loaded intel: 6 fabricator locations 16012 | -6/Factory | Lost 4 allies 16138 | -6/Factory | Loaded intel: 8 recycling unit locations 16281 | -6/Factory | First assault squad dispatched 16361 | -6/Factory | Learned location of Protoforge (-3) 16665 | -6/Factory | Found Scatter Rocket Array 16676 | -6/Factory | Lost 4 allies 16773 | -6/Factory | Build established: Hacker-Gunner 16995 | -6/Factory | Spotted B-75 Beast 17024 | -6/Factory | Garrison activated, responded to threat 17345 | -6/Factory | Cargo convoy interrupted 17366 | -6/Factory | Destroyed 11 combat bots 17387 | -6/Factory | Found PL-3XN's Ring of Power 17410 | -6/Factory | Found Prototype Processor 17420 | -6/Factory | Found Prototype Launcher 17420 | -6/Factory | Identified Tesla Bomb Launcher 17460 | -6/Factory | Identified Exp. Target Analyzer 17532 | -6/Factory | High security lockdown imminent 17553 | -6/Factory | Destroyed 10 combat bots 17591 | -6/Factory | Core integrity fell below 50% 17612 | -6/Factory | High security lockdown engaged 17621 | -6/Factory | Lost 9 parts (3n1u5w) 17632 | -6/Factory | Destroyed 11 combat bots 17783 | -6/Factory | Destroyed 8 combat bots 17802 | -6/Factory | Lost 5 parts (1p1n1u2w) 18096 | -6/Factory | Entered Lower Caves 18097 | -6/Lower Caves | Identified exit to Lower Caves 18159 | -6/Lower Caves | Attracted the attention of an 0b10 outpost 18203 | -6/Lower Caves | Destroyed 11 combat bots 18339 | -6/Lower Caves | Attracted the attention of an 0b10 checkpoint 18362 | -6/Lower Caves | Build established: Gunner 18618 | -6/Lower Caves | Learned Factory emergency access door positions 18670 | -6/Lower Caves | Encountered a Warlord checkpoint 18796 | -6/Lower Caves | Entered another Lower Caves area 18797 | -6/Lower Caves | Identified exit to Data Miner 18982 | -6/Lower Caves | Build established: Tank 19261 | -6/Lower Caves | Attracted the attention of an 0b10 checkpoint 19394 | -6/Lower Caves | Entered Data Miner 19394 | -6/Data Miner | Discovered new exit (range 6) 19417 | -6/Data Miner | Met Data Miner 19472 | -6/Data Miner | Learned location of Section 7 (-3) 19472 | -6/Data Miner | Acquired the access code to Warlord's prototype stash 19488 | -6/Data Miner | Received God Mode back door access code from Data Miner 19532 | -6/Data Miner | Entered Proximity Caves 19840 | -5/Proximity Caves | Learned location of 1 exit from Upper Caves 19872 | -5/Proximity Caves | Escorted by Enhanced Grunt 19967 | -5/Proximity Caves | Learned 4 Factory zone layouts 20058 | -5/Proximity Caves | Spotted B-75 Beast 20526 | -5/Proximity Caves | Entered Factory 20526 | -5/Factory | Evolved 2 slots: Power x1, Propulsion x1 20527 | -5/Factory | Identified exit to Extension 20528 | -5/Factory | Identified exit to Factory 20756 | -5/Factory | Loaded intel: 8 recycling unit locations 21348 | -5/Factory | Build established: Scavenger-Gunner 21459 | -5/Factory | Lost 3 parts (1p1u1w) 21478 | -5/Factory | Discovered exit to Extension (range 6) 21607 | -5/Factory | Noticed UFD Elites at a Recycling Unit 21655 | -5/Factory | Garrison activated, responded to threat 21726 | -5/Factory | First assault squad dispatched 21773 | -5/Factory | Garrison activated, responded to threat 21903 | -5/Factory | Fabricated B-60 Warrior (x3) 21906 | -5/Factory | Lost 3 parts (2n1u) 21924 | -5/Factory | Incoming assault squad redirected 21996 | -5/Factory | Lost 6 parts (1p2n1u2w) 22027 | -5/Factory | Destroyed 10 combat bots 22115 | -5/Factory | Discovered exit to Factory (range 44) 22182 | -5/Factory | System corruption reached 10% 22224 | -5/Factory | Lost 4 parts (2n1u1w) 22338 | -5/Factory | Repaired Broken Exp. Heat Sink 22354 | -5/Factory | Incoming assault squad redirected 22361 | -5/Factory | Incoming investigation squad redirected 22463 | -5/Factory | Garrison activated, responded to threat 22564 | -5/Factory | Entered Extension 22564 | -5/Extension | Accompanied by 2 allies 22579 | -5/Extension | Rescued a captive Derelict 22580 | -5/Extension | Rescued a captive Derelict 22609 | -5/Extension | Rescued a captive Derelict 22610 | -5/Extension | Rescued a captive Derelict 22674 | -5/Extension | Build established: Hacker-Sprinter 22755 | -5/Extension | Rescued a captive Derelict 22769 | -5/Extension | Rescued a captive Derelict 22770 | -5/Extension | Rescued a captive Derelict 22853 | -5/Extension | Scraphulk reinforcements arrived? 22958 | -5/Extension | Spotted B-75 Beast 22979 | -5/Extension | Destroyed B-75 Beast 22994 | -5/Extension | Spotted B-75 Beast 23000 | -5/Extension | Destroyed B-75 Beast 23029 | -5/Extension | Lost 3 allies 23062 | -5/Extension | Rescued a captive Derelict 23089 | -5/Extension | Rescued a captive Derelict 23214 | -5/Extension | Disrupted transfer network 23236 | -5/Extension | Core integrity fell below 50% 23250 | -5/Extension | Rescued A7 23531 | -5/Extension | Discovered exit to Factory (range 16) 23531 | -5/Extension | Discovered new exit (range 16) 23616 | -5/Extension | Build established: Scavenger-Gunner 23651 | -5/Extension | Entered Cetus 23651 | -5/Cetus | Accompanied by 11 allies (A7) 23656 | -5/Cetus | Acquired a Cetus Manufacturing Module code from A7 23661 | -5/Cetus | Spotted Cetus Guard 23661 | -5/Cetus | Spotted Cetus Guard 23666 | -5/Cetus | Destroyed Cetus Guard 23669 | -5/Cetus | Spotted Cetus Guard 23669 | -5/Cetus | Spotted Cetus Guard 23673 | -5/Cetus | Allies destroyed Cetus Guard 23675 | -5/Cetus | Destroyed Cetus Guard 23684 | -5/Cetus | Destroyed Cetus Guard 23706 | -5/Cetus | Started Cetus Manufacturing Module 23714 | -5/Cetus | Lost 4 allies 23731 | -5/Cetus | Manufactured an Enhanced Grunt 23740 | -5/Cetus | Escorted A7 to Cetus Mainframe 23756 | -5/Cetus | Manufactured an Enhanced Grunt 23781 | -5/Cetus | Manufactured an Enhanced Grunt 23783 | -5/Cetus | Discovered new exit (range 15) 23806 | -5/Cetus | Manufactured an Enhanced Grunt 23826 | -5/Cetus | Spotted Cetus Guard 23826 | -5/Cetus | Spotted Cetus Guard 23831 | -5/Cetus | Manufactured an Enhanced Grunt 23835 | -5/Cetus | Spotted Cetus Guard 23836 | -5/Cetus | Spotted Cetus Guard 23839 | -5/Cetus | Allies destroyed Cetus Guard 23843 | -5/Cetus | Destroyed Cetus Guard 23844 | -5/Cetus | Allies destroyed Cetus Guard 23847 | -5/Cetus | Allies destroyed Cetus Guard 23851 | -5/Cetus | Discovered exit to Factory (range 15) 23867 | -5/Cetus | Met Revision 17 23917 | -5/Cetus | Entered Archives 23917 | -5/Archives | Accompanied by 11 allies (A7) 23922 | -5/Archives | Received a hacking code to weaken MAIN.C 23968 | -5/Archives | Discovered new exit (range 15) 23971 | -5/Archives | Discovered new exit (range 16) 23981 | -5/Archives | Discovered exit to Factory (range 13) 24271 | -5/Archives | Entered Hub_04(d) 24271 | -5/Hub_04(d) | Accompanied by 9 allies 24326 | -5/Hub_04(d) | Discovered exit to Factory (range 3) 24604 | -5/Hub_04(d) | Discovered exit to Factory (range 7) 24702 | -5/Hub_04(d) | Garrison activated, responded to threat 24725 | -5/Hub_04(d) | Lost 5 parts (1p1n2u1w) 24752 | -5/Hub_04(d) | Identified exit to Garrison 24752 | -5/Hub_04(d) | Entered Garrison 24778 | -5/Garrison | Lost 6 allies 24830 | -5/Garrison | Core integrity fell below 20% 24840 | -5/Garrison | Lost 7 parts (1p4n1u1w) 24879 | -5/Garrison | Destroyed 7 combat bots 25040 | -5/Garrison | Garrison Relay disabled 25062 | -5/Garrison | Triggered checkpoint 25082 | -5/Garrison | Triggered checkpoint 25096 | -5/Garrison | Triggered checkpoint 25287 | -5/Garrison | Build established: Scavenger-Tank 25328 | -5/Garrison | Triggered checkpoint 25478 | -5/Garrison | Phase Generator disabled 25534 | -5/Garrison | Triggered checkpoint 25534 | -5/Garrison | Triggered checkpoint 25534 | -5/Garrison | Triggered checkpoint 25576 | -5/Garrison | Lost 5 allies 25596 | -5/Garrison | Destroyed 8 combat bots 25774 | -5/Garrison | Installed Relay Interface Framework 25796 | -5/Garrison | Triggered checkpoint 25852 | -5/Garrison | Discovered exit to Factory (range 10) 25954 | -5/Garrison | Triggered checkpoint 26087 | -5/Garrison | Discovered exit to Factory (range 10) 26525 | -5/Garrison | Discovered exit to Factory (range 14) 26666 | -5/Garrison | Build established: Scavenger-Gunner 26697 | -5/Garrison | Rescued a captive Derelict 26698 | -5/Garrison | Rescued a captive Derelict 26766 | -5/Garrison | Spotted B-90 Cyclops 26767 | -5/Garrison | Spotted B-75 Beast 26780 | -5/Garrison | Destroyed B-75 Beast 26784 | -5/Garrison | Allies destroyed B-90 Cyclops 26825 | -5/Garrison | Rewired B-90 Cyclops 27692 | -5/Garrison | Entered Factory 27692 | -4/Factory | Accompanied by 3 allies 27692 | -4/Factory | Evolved 2 slots: Propulsion x1, Utility x1 27727 | -4/Factory | Spotted B-86 Titan 27911 | -4/Factory | Allies destroyed B-86 Titan 27940 | -4/Factory | Discovered new exit (range 6) 27957 | -4/Factory | Loaded intel: 8 recycling unit locations 27987 | -4/Factory | Incoming investigation squad redirected 28009 | -4/Factory | Incoming investigation squad redirected 28009 | -4/Factory | Incoming investigation squad redirected 28036 | -4/Factory | Identified exit to Upper Caves 28101 | -4/Factory | Fabricated Railgun (x2) 28192 | -4/Factory | First assault squad dispatched 28217 | -4/Factory | High security lockdown imminent 28233 | -4/Factory | Manually triggered Chute Trap 28233 | -4/Factory | Sucked down chute 28233 | -4/Factory | Entered Waste 28248 | -4/Waste | EMP discharged 28271 | -4/Waste | Spotted C-40 Crusher 28284 | -4/Waste | Spotted C-40 Crusher 28286 | -4/Waste | Spotted C-40 Crusher 28287 | -4/Waste | Spotted C-40 Crusher 28293 | -4/Waste | Spotted C-40 Crusher 28322 | -4/Waste | Spotted C-40 Crusher 28337 | -4/Waste | Discovered new exit (range 15) 28342 | -4/Waste | Entered Factory 28344 | -4/Factory | Loaded intel: 8 recycling unit locations 28372 | -4/Factory | Incoming investigation squad redirected 28514 | -4/Factory | Discovered new exit (range 7) 28644 | -4/Factory | Fabricated E-15 Imp (x2) 28681 | -4/Factory | Discovered new exit (range 14) 28772 | -4/Factory | Discovered new exit (range 13) 28856 | -4/Factory | Learned Research stockpile data 28866 | -4/Factory | Fabricated P-70 Sage (x2) 28891 | -4/Factory | Identified exit to Research 28916 | -4/Factory | Learned 2 Upper Caves zone layouts 28919 | -4/Factory | Found Unknown Device 28919 | -4/Factory | Identified Launcher Loader 28922 | -4/Factory | Destroyed 8 combat bots 28931 | -4/Factory | Loaded intel: 4 garrison access locations 28956 | -4/Factory | Learned 2 Armory zone layouts 28989 | -4/Factory | Learned location of 2 exits from Upper Caves 29304 | -4/Factory | Lost 5 parts (1p3n1u) 29446 | -4/Factory | Spotted B-86 Titan 29484 | -4/Factory | System corruption reached 10% 29486 | -4/Factory | Incoming investigation squad redirected 29515 | -4/Factory | Lost 9 parts (2p4n3w) 29592 | -4/Factory | First assault squad dispatched 29596 | -4/Factory | Lost 4 parts (1n2u1w) 29607 | -4/Factory | Incoming assault squad redirected 29971 | -4/Factory | Repaired Coolant Network 30002 | -4/Factory | Repaired Imp. Antigrav System? 30045 | -4/Factory | Repaired Cmb. Linear Gravjet 30105 | -4/Factory | Incoming assault squad redirected 30135 | -4/Factory | Incoming investigation squad redirected 30167 | -4/Factory | High security lockdown imminent 30198 | -4/Factory | Scrapoids reinforcements arrived? 30210 | -4/Factory | Found Scrap Suit 30225 | -4/Factory | Found Scrap Suit 30247 | -4/Factory | High security lockdown engaged 30251 | -4/Factory | Entered Upper Caves 30252 | -4/Upper Caves | Identified exit to Upper Caves 30263 | -4/Upper Caves | Learned Research emergency access door positions 30462 | -4/Upper Caves | Encountered a Warlord checkpoint 30497 | -4/Upper Caves | Entered another Upper Caves area 30498 | -4/Upper Caves | Identified exit to Warlord 30545 | -4/Upper Caves | Learned Research trap positions 30613 | -4/Upper Caves | Spotted B-86 Titan 30679 | -4/Upper Caves | Entered Warlord 30696 | -4/Warlord | System corruption cleaned by Quarantine Array 30698 | -4/Warlord | RIF detected upon attempting to enter Warlord's base 30698 | -4/Warlord | Attacked by Warlord forces 30717 | -4/Warlord | Discovered new exit (range 15) 30735 | -4/Warlord | Entered Proximity Caves 30749 | -3/Proximity Caves | Spotted B-86 Titan 30802 | -3/Proximity Caves | Spotter reported a threat 30878 | -3/Proximity Caves | Discovered exit to Research (range 5) 31073 | -3/Proximity Caves | Entered Research 31073 | -3/Research | Evolved 2 slots: Utility x2 31074 | -3/Research | Loaded intel: 61 trap records 31273 | -3/Research | Revision forces began assault on 0b10 31277 | -3/Research | Repaired Adv. Recoil Stabilizer? 31325 | -3/Research | Destroyed 7 combat bots 31328 | -3/Research | Lost 4 parts (1p2n1w) 31474 | -3/Research | Met up with Revision 17++ 31597 | -3/Research | Loaded intel: 5 recycling unit locations 31672 | -3/Research | Discovered new exit (range 13) 31710 | -3/Research | Discovered new exit (range 13) 31724 | -3/Research | Discovered new exit (range 3) 31773 | -3/Research | Research terminal network offline 31793 | -3/Research | Discovered new exit (range 15) 31856 | -3/Research | Spotted Striker 31881 | -3/Research | Lost 5 allies 32017 | -3/Research | Identified exit to Research 32038 | -3/Research | Identified exit to Quarantine 32067 | -3/Research | Found Prototype Launcher 32067 | -3/Research | Identified Com. Tesla Bomb Launcher 32150 | -3/Research | Spotted Striker 32155 | -3/Research | Spotted Striker 32161 | -3/Research | Destroyed Striker 32198 | -3/Research | Destroyed Striker 32311 | -3/Research | Found Prototype Device 32311 | -3/Research | Identified Adv. Kinecellerator 32465 | -3/Research | Spotted Striker 32498 | -3/Research | Destroyed Striker 32518 | -3/Research | Build established: Scavenger-Tank 32605 | -3/Research | Spotted Striker 32616 | -3/Research | Entered Quarantine 32780 | -3/Quarantine | Scanned by Researcher 32800 | -3/Quarantine | Cryocooling Duct disabled 32815 | -3/Quarantine | Ambient heat levels rising (+20) 32815 | -3/Quarantine | Non-combat units ordered to evacuate 32938 | -3/Quarantine | Incoming investigation squad redirected 32983 | -3/Quarantine | Found Prototype Launcher 33015 | -3/Quarantine | Cryocooling Duct disabled 33020 | -3/Quarantine | Discovered exit to Research (range 15) 33030 | -3/Quarantine | Ambient heat levels rising (+20) 33030 | -3/Quarantine | Combat units ordered to evacuate 33047 | -3/Quarantine | Found Alien Artifact 33047 | -3/Quarantine | Identified Phase Armor 33058 | -3/Quarantine | Found Alien Artifact 33099 | -3/Quarantine | Identified Hellfire Missile Launcher 33130 | -3/Quarantine | Quarantine Guard activated 33133 | -3/Quarantine | Identified Terrabomb 33133 | -3/Quarantine | Used Terrabomb 33158 | -3/Quarantine | Incoming investigation squad redirected 33171 | -3/Quarantine | Found Alien Reactor 33171 | -3/Quarantine | Identified Matter Drive 33187 | -3/Quarantine | Incoming investigation squad redirected 33224 | -3/Quarantine | Spotted Quarantine Guard 33231 | -3/Quarantine | Spotted Quarantine Guard 33253 | -3/Quarantine | Spotted Quarantine Guard 33276 | -3/Quarantine | Spotted Quarantine Guard 33290 | -3/Quarantine | Spotted Quarantine Guard 33332 | -3/Quarantine | Spotted Quarantine Guard 33351 | -3/Quarantine | Found Alien Artifact 33351 | -3/Quarantine | Identified Subatomic Replicator 33373 | -3/Quarantine | Found Terrabomb 33378 | -3/Quarantine | Found Terrabomb 33378 | -3/Quarantine | Used Terrabomb 33378 | -3/Quarantine | Spotted Quarantine Guard 33430 | -3/Quarantine | Lost 3 parts (1n1u1w) 33444 | -3/Quarantine | Spotted Fortress 33484 | -3/Quarantine | Discovered new exit (range 6) 33484 | -3/Quarantine | Discovered new exit (range 6) 33484 | -3/Quarantine | Spotted Quarantine Guard 33484 | -3/Quarantine | Spotted Quarantine Guard 33487 | -3/Quarantine | Entered Protoforge 33562 | -3/Protoforge | Superfortress began startup sequence 33563 | -3/Protoforge | Spotted B-86 Titan 33716 | -3/Protoforge | Spotted Hotshot 33716 | -3/Protoforge | Spotted Hotshot 33716 | -3/Protoforge | Spotted Hotshot 33716 | -3/Protoforge | Spotted Hotshot 33737 | -3/Protoforge | Search patrols dispatched 33746 | -3/Protoforge | Build established: Hacker-Tank 33767 | -3/Protoforge | Spotted AP7-3 33768 | -3/Protoforge | Spotted AP7-3 33783 | -3/Protoforge | Used Terrabomb 33785 | -3/Protoforge | Spotted EXE-6 33785 | -3/Protoforge | Spotted EXE-6 33797 | -3/Protoforge | Spotted SKR-2 33797 | -3/Protoforge | Spotted SKR-2 33804 | -3/Protoforge | Spotted SKR-2 33807 | -3/Protoforge | Core integrity fell below 50% 33812 | -3/Protoforge | Released all parts (9) 33827 | -3/Protoforge | UFD initiated attack on Protoforge 33827 | -3/Protoforge | Loaded intel: 3 recycling unit locations 33833 | -3/Protoforge | Core integrity fell below 20% 33840 | -3/Protoforge | Lost 10 parts (2p4n1u3w) 33846 | -3/Protoforge | Destroyed by EXE-6 with Concept XC Strikerail Last Messages --------------- 33840_ SKR-2 follow-up attacks with Enh. Force Lance. 33841_ YI-3JH(j) suffers critical hit (Impale). 33841_ YI-3JH(j) destroyed. 33841_ Penetrated by Slug. 33841_ Slug penetrates Earth. 33841_ Slug penetrates SKR-2. 33841_ SKR-2 suffers critical hit (Destroy). 33842_ 0bP_NET: You cast us aside, experiment on us, now we're here to secure our own future. 33843_ Slug penetrates SKR-2. 33843_ Slug penetrates Earth. 33843_ 03F12-D suffers critical hit (Impale). 33844_ Slug penetrates 03F12-D. 33844_ Slug penetrates Earth. 33844_ SKR-2 suffers critical hit (Destroy). 33844_ Slug penetrates SKR-2. 33845_ 03F12-D destroyed. 33845_ Slug penetrates U1-F4X(E). 33846_ Penetrated by Slug. Map ----- +----------------------------------------------------+ | ?????????????????????????????????????????????????? | | ?????????????????????????????????????????????????? | | ?????????????????????????????????????????????????? | | ?????????????????????????????????????????????????? | | ?????????????????????????????????????????????????? | | ?????????????????????????????????????????????????? | | ?????????????????????????????????????????????????? | | ?????????????????????????????????????????????????? | | ?????????????????????????????????????????????????? | | "????????????????????????????????????????????????? | | """"??????????????????? ????????????????????????? | | """"""???????????????"" ????????????????????????? | | """"""""??????????"" " ???????????????????????? | | """""""""??????? " "???????????????????????? | | """"""""" ???? " ???????????????????????? | | """"""""" ??? "m" ???????????????????????? | | """""""" ?? " ???????????????????????? | | """"""" "" " " "" #??????????????????????? | | """""" " " """" #??????????????????????? | | """"" " " " """ #??????????????????????? | | """" "? " " "" #??????????????????????? | | """ "" "" " "" #??????????????????????? | | "" "" #??????????????????????? | | "" "" "" """ """ #??????????????????????? | | "" "" "" """" #??????????????????????? | | " " " """"@###????????????????????? | | " """" " "" """ "" <<#????????????????????? | | " """""""""" "" s =!#????????????????????? | | " [s*!E ???????????????????? | | """ " "" """!%=K=[##??????????????????? | | " "" "" " "" =![K!!#??????????????????? | | """" " "" "" "=!!%!# #?????????????????? | | " " " " *%!# ###?????????????????? | | """" = [[=# #????????????????????? | | /%! " ###????????????????????? | | """"" """ !!= #??????????????????????? | | """ #??????????????????????? | | """"" " " " "" "#??????????????????????? | | #############+++###########??????????????????????? | | ????????#"" ""#????????????????????????????? | | ??????###" "###??????????????????????????? | | ??????#"" ""#??????????????????????????? | | ??????#"" ""#??????????????????????????? | | ??????#"" ""#??????????????????????????? | | ??????#"Y Y"#??????????????????????????? | | ??????#"" ""#??????????????????????????? | | ??????#"" ""#??????????????????????????? | | ??????#"" ""#??????????????????????????? | | ??????###" "###??????????????????????????? | | ????????#"" ""#????????????????????????????? | +----------------------------------------------------+ Best States ------------- Heat Dissipation 136 Coolant Potential 100 Energy Generation 41 Energy Capacity 525 Matter Stores 300 Matter Capacity 300 Sight Range 23 Terrain Scan Range 16 Terrain Scan Density 10 Additional Mass Support 9 Armor Coverage 225 Resistance: KI 20 Core Shielding 20 Propulsion Shielding 66 Weapon Shielding 66 Weapon Cycling 30 Evasion (%) 69 Targeting Accuracy 8 Target Analysis 13 Armor Integrity Analysis 30 Recoil Reduction 6 Salvage Targeting 4 Offensive Hacking 36 Defensive Hacking 26 Item Schematics ----------------- Imp. Weapon Shielding | -9/Materials | Scanalyzed Cooling System | -9/Materials | Scanalyzed Shock Bomb Launcher | -9/Materials | Scanalyzed Hvy. Ion Engine | -9/Materials | Scanalyzed Remote Shield | -9/Materials | Scanalyzed Gauss Rifle | -8/Materials | Scanalyzed Lgt. Fission Core | -8/Materials | Scanalyzed Adv. EMP Blaster | -8/Materials | Scanalyzed Hpw. Tractor Beam | -8/Materials | Scanalyzed Rnf. Deuterium Engine | -8/Materials | Scanalyzed Hardlight Generator | -8/Materials | Extracted Targeting Computer | -8/Materials | Extracted Mni. Grenade Launcher | -8/Materials | Extracted Core Shielding | -8/Materials | Extracted Deuterium Engine | -8/Materials | Extracted Airjet | -8/Materials | Extracted Hpw. Shotgun | -8/Materials | Extracted Imp. Treads | -8/Materials | Extracted Seismic Detector | -8/Materials | Extracted Ion Cannon | -8/Materials | Extracted Imp. Gravmag System | -6/Factory | Scanalyzed Mni. Assault Cannon | -6/Factory | Scanalyzed Adv. Weight Redist. System | -6/Factory | Scanalyzed Hvy. Assault Cannon | -6/Factory | Scanalyzed Combat Drone Bay | -6/Data Miner | Free Lgt. Regenerative Plating | -6/Data Miner | Free Cld. Gravmag System | -6/Data Miner | Free Imp. Energy Well | -6/Data Miner | Free Tiamat Missile Launcher | -6/Data Miner | Free Myomer Leg | -6/Data Miner | Free Railgun | -6/Data Miner | Free Lrn. Sensor Array | -6/Data Miner | Free Adv. Recoil Stabilizer | -5/Factory | Scanalyzed Focal Shield | -5/Factory | Scanalyzed Linear Accelerator | -4/Factory | Hacked Hyp. Mass Driver | -4/Factory | Scanalyzed Cmb. Antigrav System | -3/Quarantine | Scanalyzed Adv. Power Amplifier | -3/Quarantine | Extracted Particle Charger | -3/Quarantine | Extracted Robot Schematics ------------------ M-28 Smith | -8/Materials | Hacked O-24 Administrator | -8/Materials | Hacked D-53 Grenadier | -8/Storage | Hacked X-67 Chaingunner | -6/Data Miner | Free O-32 Director | -6/Data Miner | Free C-35 Carver | -6/Data Miner | Free B-48 Gladiator | -6/Data Miner | Free E-15 Imp | -6/Data Miner | Free A-15 Conveyor | -6/Data Miner | Free P-70 Sage | -6/Data Miner | Free R-10 Processor | -6/Data Miner | Free H-66 Slayer | -4/Factory | Hacked Fabricated ------------ B-60 Warrior | x3 | -5/Factory | Preloaded Railgun | x2 | -4/Factory E-15 Imp | x2 | -4/Factory | Preloaded P-70 Sage | x2 | -4/Factory Repaired ---------- Minigun | 44% | -8/Materials Lgt. Treads | 59% | -8/Materials | Broken Gauss Rifle | 47% | -8/Materials Imp. Assault Rifle | 67% | -8/Materials Imp. Assault Rifle | 77% | -8/Materials Gauss Rifle | 37% | -8/Storage Exp. Heat Sink | 99% | -5/Factory | Broken Coolant Network | 8% | -4/Factory Imp. Antigrav System | 1% | -4/Factory Cmb. Linear Gravjet | 34% | -4/Factory Adv. Recoil Stabilizer | 5% | -3/Research Alien Tech Used ----------------- Phase Armor Terrabomb Matter Drive Subatomic Replicator Achievements -------------- None Challenges ------------ None Game ------ Seed MetafiberDataShockpuncher Manual? 0 Play Time 08:02:01 Cumulative 466.7 hours Start 2025.08.04 @ 23:32:03 End 2025.08.06 @ 18:15:25 Sessions 9 Manual Loads 0 Difficulty Rogue Special Mode None Game No. 261 Rogue 261 Adventurer 0 Explorer 0 Win Type - Total 5 Types 3/0/1/1/0/0/0/0/0/0 Lore% 86 Gallery% 75 Achievement% 68 Wizard Run 0 Options --------- Layout 2 ASCII 0 Keyboard 1 Movement Vi Keybinds 0 Fullscreen 1 Font 16/Tamsyn Map View 55x47 Zoom Use 0% Tactical HUD 1 Map Filters NONE Filters NONE Steam 0 RUN: 7d18f83b-b9d8-47ca-97ec-15cc39dbebd7